Workbook

Sheet Disclaimer
B2: Disclaimer
C21: © 2012-2023
C22: IUC - Belastingdienst

Sheet Superformule
B2: Uitgangspunten Superformule
E3: = invoervelden
E6: Naam inkooptraject | K6: Even geduld a.u.b.
E7: Kenmerk | K7: Updaten van grafieken!
E9: Uitgangspunten Superformule
D10: 1 | E10: Maximum aantal punten dat aan de WENSEN wordt toegekend | K10: 100 | L10: = Qwensen
D11: 2 | E11: Aandeel Qeisen in KWALITEIT (=100%) (Lijn A) | I11: =+'HULP-velden'!J73 -> 0.6 | K11: =ROUND(IFERROR(Superformule!K10/Superformule!I12*(1-Superformule!I12),0),0) -> 150 | L11: = Qmin
E12: Aandeel Qwensen in KWALITEIT (=100%) | I12: =1-I11 -> 0.4 | K12: =IFERROR(+K13-K11,0) -> 100 | L12: = Qwensen
E13: Punten voor EISEN en WENSEN (Qtotaal) | I13: =SUM(I11:I12) -> 1 | K13: =IFERROR(+K11+Superformule!K10,0) -> 250 | L13: = Qmax
D14: 3 | E14: Referentiekwaliteit (Punt B) | I14: =+'HULP-velden'!J74 -> 0.5 | K14: =IF(Qmin+I14*(Qmax-Qmin)<'HULP-velden'!J70,'HULP-velden'!J70,Qmin+I14*(Qmax-Qmin)) -> 200 | L14: = Qref
D15: 4 | E15: Referentieprijs (Pref) | K15: 100000 | L15: = Pref
D16: 5 | E16: Prijs voor maximale kwaliteit (Qmax) (Punt C) | I16: =+'HULP-velden'!J75 -> 0.1989578808 | J16: 0.175 | K16: ='HULP-velden'!K75*K15 -> 119895.7881 | L16: = P (Qmax)
H17: Advieswaarde punt C (dit is de exacte cirkel met n=2) | I17: =+'HULP-velden'!L19-1 -> 0.1989578808
H18: Maximale waarde punt C (dit is een lineaire lijn met n=1) | I18: =+'HULP-velden'!L20-1 -> 0.25
E19: Waarde voor n in Superformule | K19: =IF(ISERROR(ROUND(SOLVERWAARDE,3)),1,ROUND(SOLVERWAARDE,3)) -> 2 | L19: = n-waarde
D20: 6 | E20: Hoogste verwachte vergelijkingswaarde (hulplijn)
D21: 7 | E21: Laagste verwachte vergelijkingswaarde (hulplijn)
D22: 8 | E22: Lowest Acceptable Quality (Qeisen + Qknockout) | I22: =">"&Qmin -> >150 | K22: -1000 | L22: = Qknockout

Sheet Info BD
B2: Info t.b.v. Beschrijvend Document | I2: Even geduld a.u.b.
I3: De teksten voor het inkoopdocument worden gegenereerd!
G6: Voorbeeldtekst en waarden t.b.v. Beschrijvend Document
G10: Informatie t.b.v. gele velden in tekst Document | J10: Waarde
G11: Totaal aantal punten | J11: =+Qmax -> 250
G12: Aantal punten voor de wensen (Qwensen) | J12: =Qwensen -> 100
G13: Aantal punten voor de eisen (Qeisen) | J13: =Qmin -> 150
G14: Referentie kwaliteit (Qref) | J14: =Qref -> 200
G15: Referentie Prijs (Pref) | J15: =Pref -> 100000
G16: Prijs bij maximale kwaliteit (P bij Qmax) | J16: =Pmax -> 119895.7881
G17: Waarde voor n in Superformule | J17: =Exponent -> 2
G18: Lowest Acceptable Quality (LAQ = QKnockOut) | J18: =IF(Superformule!$K$22<0,"n.v.t.",Superformule!$K$22) -> n.v.t.
G19: Ten behoeve van voorbeeld in Document | J19: Waarde
G20: Winnaar | J20: ="Leverancier " & 'HULP-velden'!I61 -> Leverancier 4
G21: Inschrijfprijs | J21: =VLOOKUP(1,'Info BD'!$A$27:$J$31,5,FALSE) -> 92040
G22: Kwaliteitscore | J22: =VLOOKUP(1,'Info BD'!$A$27:$J$31,9,FALSE) -> 235
G23: BPK-Score | J23: =VLOOKUP(1,'Info BD'!$A$27:$J$31,7,FALSE) -> 0.8740026201
B25: Legenda voorbeeld inschrijvingen | J25: Totaal Genormaliseerd
B26: Inschrijver | C26: Qwenseni | D26: Vrije keuze Qwenseni | E26: Pi | F26: Vrije keuze Pi | G26: SCOREi | H26: Qmin | I26: Totaal | K26: Rangorde
A27: =6-RANK(G27,$G$27:$G$31) -> 5 | B27: 1 | C27: =IF(ISBLANK(D27),'HULP-velden'!G121,D27) -> 65 | E27: =IF(ISBLANK(F27),'HULP-velden'!H121,F27) -> 99010 | G27: =IFERROR((0.5*(E27/Pref)^Exponent+0.5*(2-I27/Qref)^Exponent)^(1/Exponent),0) -> 0.9581030764 | H27: =Qmin -> 150 | I27: =+H27+C27 -> 215 | J27: =ROUND(I27/Qmax*100,0) -> 86 | K27: =IF('HULP-velden'!J130="KO","KO",'HULP-velden'!N130) -> 5
A28: =6-RANK(G28,$G$27:$G$31) -> 3 | B28: 2 | C28: =IF(ISBLANK(D28),'HULP-velden'!G122,D28) -> 73 | E28: =IF(ISBLANK(F28),'HULP-velden'!H122,F28) -> 92040 | G28: =IFERROR((0.5*(E28/Pref)^Exponent+0.5*(2-I28/Qref)^Exponent)^(1/Exponent),0) -> 0.9028735127 | H28: =Qmin -> 150 | I28: =+H28+C28 -> 223 | J28: =ROUND(I28/Qmax*100,0) -> 89 | K28: =IF('HULP-velden'!J131="KO","KO",'HULP-velden'!N131) -> 3
A29: =6-RANK(G29,$G$27:$G$31) -> 4 | B29: 3 | C29: =IF(ISBLANK(D29),'HULP-velden'!G123,D29) -> 80 | E29: =IF(ISBLANK(F29),'HULP-velden'!H123,F29) -> 101990 | G29: =IFERROR((0.5*(E29/Pref)^Exponent+0.5*(2-I29/Qref)^Exponent)^(1/Exponent),0) -> 0.9388013661 | H29: =Qmin -> 150 | I29: =+H29+C29 -> 230 | J29: =ROUND(I29/Qmax*100,0) -> 92 | K29: =IF('HULP-velden'!J132="KO","KO",'HULP-velden'!N132) -> 4
A30: =6-RANK(G30,$G$27:$G$31) -> 1 | B30: 4 | C30: =IF(ISBLANK(D30),'HULP-velden'!G124,D30) -> 85 | E30: =IF(ISBLANK(F30),'HULP-velden'!H124,F30) -> 92040 | G30: =IFERROR((0.5*(E30/Pref)^Exponent+0.5*(2-I30/Qref)^Exponent)^(1/Exponent),0) -> 0.8740026201 | H30: =Qmin -> 150 | I30: =+H30+C30 -> 235 | J30: =ROUND(I30/Qmax*100,0) -> 94 | K30: =IF('HULP-velden'!J133="KO","KO",'HULP-velden'!N133) -> 1
A31: =6-RANK(G31,$G$27:$G$31) -> 2 | B31: 5 | C31: =IF(ISBLANK(D31),'HULP-velden'!G125,D31) -> 93 | E31: =IF(ISBLANK(F31),'HULP-velden'!H125,F31) -> 100000 | G31: =IFERROR((0.5*(E31/Pref)^Exponent+0.5*(2-I31/Qref)^Exponent)^(1/Exponent),0) -> 0.8989507773 | H31: =Qmin -> 150 | I31: =+H31+C31 -> 243 | J31: =ROUND(I31/Qmax*100,0) -> 97 | K31: =IF('HULP-velden'!J134="KO","KO",'HULP-velden'!N134) -> 2

Sheet Evaluatie
B2: ="Evaluatie " & DATA!G46 & " " & DATA!G47 -> Evaluatie 0 0
E6: = invoervelden | H6: Score Qwensen | J6: Rang- orde | L6: Score Qeisen | M6: Score Totaal | N6: Score in procenten
D7: # | E7: Inschrijver | F7: Qi | G7: Pi | I7: SCOREi
D8: 1 | F8: =+N8 ->  | I8: =IF(ISBLANK(G8),"",(0.5*(G8/DATA!$C$12)^DATA!$F$38+0.5*(2-(M8)/DATA!$D$12)^DATA!$F$38)^(1/DATA!$F$38)) ->  | J8: =IF('HULP-velden'!K96="KO","KO",'HULP-velden'!O96) ->  | L8: =IF(ISBLANK(G8),"",DATA!$G$41) ->  | M8: =IFERROR((+H8+L8),"") ->  | N8: =IFERROR(((M8/DATA!$G$40)*100),"") -> 
D9: 2 | I9: =IF(ISBLANK(G9),"",(0.5*(G9/DATA!$C$12)^DATA!$F$38+0.5*(2-(M9)/DATA!$D$12)^DATA!$F$38)^(1/DATA!$F$38)) ->  | J9: =IF('HULP-velden'!K97="KO","KO",'HULP-velden'!O97) ->  | L9: =IF(ISBLANK(G9),"",DATA!$G$41) ->  | N9: =IFERROR(((M9/DATA!$G$40)*100),"") -> 
D10: 3 | I10: =IF(ISBLANK(G10),"",(0.5*(G10/DATA!$C$12)^DATA!$F$38+0.5*(2-(M10)/DATA!$D$12)^DATA!$F$38)^(1/DATA!$F$38)) ->  | J10: =IF('HULP-velden'!K98="KO","KO",'HULP-velden'!O98) ->  | L10: =IF(ISBLANK(G10),"",DATA!$G$41) ->  | N10: =IFERROR(((M10/DATA!$G$40)*100),"") -> 
D11: 4 | I11: =IF(ISBLANK(G11),"",(0.5*(G11/DATA!$C$12)^DATA!$F$38+0.5*(2-(M11)/DATA!$D$12)^DATA!$F$38)^(1/DATA!$F$38)) ->  | J11: =IF('HULP-velden'!K99="KO","KO",'HULP-velden'!O99) ->  | L11: =IF(ISBLANK(G11),"",DATA!$G$41) ->  | N11: =IFERROR(((M11/DATA!$G$40)*100),"") -> 
D12: 5 | I12: =IF(ISBLANK(G12),"",(0.5*(G12/DATA!$C$12)^DATA!$F$38+0.5*(2-(M12)/DATA!$D$12)^DATA!$F$38)^(1/DATA!$F$38)) ->  | J12: =IF('HULP-velden'!K100="KO","KO",'HULP-velden'!O100) ->  | L12: =IF(ISBLANK(G12),"",DATA!$G$41) ->  | N12: =IFERROR(((M12/DATA!$G$40)*100),"") -> 
D13: 6 | I13: =IF(ISBLANK(G13),"",(0.5*(G13/DATA!$C$12)^DATA!$F$38+0.5*(2-(M13)/DATA!$D$12)^DATA!$F$38)^(1/DATA!$F$38)) ->  | J13: =IF('HULP-velden'!K101="KO","KO",'HULP-velden'!O101) ->  | L13: =IF(ISBLANK(G13),"",DATA!$G$41) ->  | N13: =IFERROR(((M13/DATA!$G$40)*100),"") -> 
D14: 7 | I14: =IF(ISBLANK(G14),"",(0.5*(G14/DATA!$C$12)^DATA!$F$38+0.5*(2-(M14)/DATA!$D$12)^DATA!$F$38)^(1/DATA!$F$38)) ->  | J14: =IF('HULP-velden'!K102="KO","KO",'HULP-velden'!O102) ->  | L14: =IF(ISBLANK(G14),"",DATA!$G$41) ->  | N14: =IFERROR(((M14/DATA!$G$40)*100),"") -> 
D15: 8 | I15: =IF(ISBLANK(G15),"",(0.5*(G15/DATA!$C$12)^DATA!$F$38+0.5*(2-(M15)/DATA!$D$12)^DATA!$F$38)^(1/DATA!$F$38)) ->  | J15: =IF('HULP-velden'!K103="KO","KO",'HULP-velden'!O103) ->  | L15: =IF(ISBLANK(G15),"",DATA!$G$41) ->  | N15: =IFERROR(((M15/DATA!$G$40)*100),"") -> 
D16: 9 | I16: =IF(ISBLANK(G16),"",(0.5*(G16/DATA!$C$12)^DATA!$F$38+0.5*(2-(M16)/DATA!$D$12)^DATA!$F$38)^(1/DATA!$F$38)) ->  | J16: =IF('HULP-velden'!K104="KO","KO",'HULP-velden'!O104) ->  | L16: =IF(ISBLANK(G16),"",DATA!$G$41) ->  | N16: =IFERROR(((M16/DATA!$G$40)*100),"") -> 
D17: 10 | I17: =IF(ISBLANK(G17),"",(0.5*(G17/DATA!$C$12)^DATA!$F$38+0.5*(2-(M17)/DATA!$D$12)^DATA!$F$38)^(1/DATA!$F$38)) ->  | J17: =IF('HULP-velden'!K105="KO","KO",'HULP-velden'!O105) ->  | L17: =IF(ISBLANK(G17),"",DATA!$G$41) ->  | N17: =IFERROR(((M17/DATA!$G$40)*100),"") -> 
D18: 11 | I18: =IF(ISBLANK(G18),"",(0.5*(G18/DATA!$C$12)^DATA!$F$38+0.5*(2-(M18)/DATA!$D$12)^DATA!$F$38)^(1/DATA!$F$38)) ->  | J18: =IF('HULP-velden'!K106="KO","KO",'HULP-velden'!O106) ->  | L18: =IF(ISBLANK(G18),"",DATA!$G$41) ->  | N18: =IFERROR(((M18/DATA!$G$40)*100),"") -> 
D19: 12 | I19: =IF(ISBLANK(G19),"",(0.5*(G19/DATA!$C$12)^DATA!$F$38+0.5*(2-(M19)/DATA!$D$12)^DATA!$F$38)^(1/DATA!$F$38)) ->  | J19: =IF('HULP-velden'!K107="KO","KO",'HULP-velden'!O107) ->  | L19: =IF(ISBLANK(G19),"",DATA!$G$41) ->  | N19: =IFERROR(((M19/DATA!$G$40)*100),"") -> 
E20: Referentie | G20: =DATA!C12 -> 100000 | H20: =DATA!H38-DATA!G41 -> 50 | I20: =IF(ISBLANK(G20),"",(0.5*(G20/DATA!$C$12)^DATA!$F$38+0.5*(2-(M20)/DATA!$D$12)^DATA!$F$38)^(1/DATA!$F$38)) -> 1 | L20: =IF(ISBLANK(G20),"",DATA!$G$41) -> 150 | M20: =DATA!D12 -> 200 | N20: =IFERROR(((M20/DATA!$G$40)*100),"") -> 80
E21: Referentie (Qmax) | G21: =DATA!C13 -> 119895.7881 | H21: =DATA!G42 -> 100 | I21: =IF(ISBLANK(G21),"",(0.5*(G21/DATA!$C$12)^DATA!$F$38+0.5*(2-(M21)/DATA!$D$12)^DATA!$F$38)^(1/DATA!$F$38)) -> 1 | L21: =IF(ISBLANK(G21),"",DATA!$G$41) -> 150 | M21: =DATA!D13 -> 250 | N21: =IFERROR(((M21/DATA!$G$40)*100),"") -> 100

Sheet TBV Onderzoek
B2: Data voor onderzoek Superformule
B6: Naam inkooptraject | D6: Naam traject
B7: Kenmerk | D7: Uw kenmerk
B9: Naam organisatie | D9: Uw organisatie
B10: Datum Publicatie | D10: 2021-11-11
B11: CPV-code | D11: ICT
B13: Contactpersoon | D13: uw naam | P13: Namen van inschrijvers geanonimiseerd
B14: Telefoonnummer | D14: uw telefoonnr.
B16: # | D16: Kenmerk | E16: Naam_Aanbesteding | F16: CPV-code | G16: Datum_Publicatie | H16: Pref | I16: Qref | J16: Qwensen | K16: Qmin | L16: Qmax | M16: P(Qmax) | N16: n-waarde | O16: Qknockout | P16: Naam_Inschrijver | Q16: P(inschrijver) | R16: Q(Inschrijver) | S16: Score | T16: Rangorde
B17: 1 | D17: =+Superformule!$G$7 -> 0 | E17: =+Superformule!$G$6 -> 0 | F17: =D11 -> ICT | G17: =+D10 -> 2021-11-11 | H17: =+Pref -> 100000 | I17: =+Qref -> 200 | J17: =Qmax-Qmin -> 100 | K17: =+Qmin -> 150 | L17: =+Qmax -> 250 | M17: =+Pmax -> 119895.7881 | N17: =+Exponent -> 2 | O17: =LAQ -> -1000 | P17: =+Evaluatie!E8 -> 0 | Q17: =+Evaluatie!G8 -> 0 | R17: =+Evaluatie!H8 -> 0 | S17: =+Evaluatie!I8 ->  | T17: =+Evaluatie!J8 -> 
B18: 2 | D18: =+Superformule!$G$7 -> 0 | E18: =+Superformule!$G$6 -> 0 | F18: =$F$17 -> ICT | G18: =+$G$17 -> 2021-11-11 | H18: 100000 | I18: 200 | J18: 100 | K18: 150 | L18: 250 | M18: 119895.7881 | N18: 2 | O18: -1000 | P18: =+Evaluatie!E9 -> 0 | Q18: =+Evaluatie!G9 -> 0 | R18: =+Evaluatie!H9 -> 0 | S18: =+Evaluatie!I9 ->  | T18: =+Evaluatie!J9 -> 
B19: 3 | D19: =+Superformule!$G$7 -> 0 | E19: =+Superformule!$G$6 -> 0 | F19: =$F$17 -> ICT | G19: =+$G$17 -> 2021-11-11 | H19: 100000 | I19: 200 | J19: 100 | K19: 150 | L19: 250 | M19: 119895.7881 | N19: 2 | O19: -1000 | P19: =+Evaluatie!E10 -> 0 | Q19: =+Evaluatie!G10 -> 0 | R19: =+Evaluatie!H10 -> 0 | S19: =+Evaluatie!I10 ->  | T19: =+Evaluatie!J10 -> 
B20: 4 | D20: =+Superformule!$G$7 -> 0 | E20: =+Superformule!$G$6 -> 0 | F20: ICT | G20: 2021-11-11 | H20: 100000 | I20: 200 | J20: 100 | K20: 150 | L20: 250 | M20: 119895.7881 | N20: 2 | O20: -1000 | P20: =+Evaluatie!E11 -> 0 | Q20: =+Evaluatie!G11 -> 0 | R20: =+Evaluatie!H11 -> 0 | S20: =+Evaluatie!I11 ->  | T20: =+Evaluatie!J11 -> 
B21: 5 | D21: =+Superformule!$G$7 -> 0 | E21: =+Superformule!$G$6 -> 0 | F21: ICT | G21: 2021-11-11 | H21: 100000 | I21: 200 | J21: 100 | K21: 150 | L21: 250 | M21: 119895.7881 | N21: 2 | O21: -1000 | P21: =+Evaluatie!E12 -> 0 | Q21: =+Evaluatie!G12 -> 0 | R21: =+Evaluatie!H12 -> 0 | S21: =+Evaluatie!I12 ->  | T21: =+Evaluatie!J12 -> 
B22: 6 | D22: =+Superformule!$G$7 -> 0 | E22: =+Superformule!$G$6 -> 0 | F22: ICT | G22: 2021-11-11 | H22: 100000 | I22: 200 | J22: 100 | K22: 150 | L22: 250 | M22: 119895.7881 | N22: 2 | O22: -1000 | P22: =+Evaluatie!E13 -> 0 | Q22: =+Evaluatie!G13 -> 0 | R22: =+Evaluatie!H13 -> 0 | S22: =+Evaluatie!I13 ->  | T22: =+Evaluatie!J13 -> 
B23: 7 | D23: =+Superformule!$G$7 -> 0 | E23: =+Superformule!$G$6 -> 0 | F23: ICT | G23: 2021-11-11 | H23: 100000 | I23: 200 | J23: 100 | K23: 150 | L23: 250 | M23: 119895.7881 | N23: 2 | O23: -1000 | P23: =+Evaluatie!E14 -> 0 | Q23: =+Evaluatie!G14 -> 0 | R23: =+Evaluatie!H14 -> 0 | S23: =+Evaluatie!I14 ->  | T23: =+Evaluatie!J14 -> 
B24: 8 | D24: =+Superformule!$G$7 -> 0 | E24: =+Superformule!$G$6 -> 0 | F24: ICT | G24: 2021-11-11 | H24: 100000 | I24: 200 | J24: 100 | K24: 150 | L24: 250 | M24: 119895.7881 | N24: 2 | O24: -1000 | P24: =+Evaluatie!E15 -> 0 | Q24: =+Evaluatie!G15 -> 0 | R24: =+Evaluatie!H15 -> 0 | S24: =+Evaluatie!I15 ->  | T24: =+Evaluatie!J15 -> 
B25: 9 | D25: =+Superformule!$G$7 -> 0 | E25: =+Superformule!$G$6 -> 0 | F25: ICT | G25: 2021-11-11 | H25: 100000 | I25: 200 | J25: 100 | K25: 150 | L25: 250 | M25: 119895.7881 | N25: 2 | O25: -1000 | P25: =+Evaluatie!E16 -> 0 | Q25: =+Evaluatie!G16 -> 0 | R25: =+Evaluatie!H16 -> 0 | S25: =+Evaluatie!I16 ->  | T25: =+Evaluatie!J16 -> 
B26: 10 | D26: =+Superformule!$G$7 -> 0 | E26: =+Superformule!$G$6 -> 0 | F26: ICT | G26: 2021-11-11 | H26: 100000 | I26: 200 | J26: 100 | K26: 150 | L26: 250 | M26: 119895.7881 | N26: 2 | O26: -1000 | P26: =+Evaluatie!E17 -> 0 | Q26: =+Evaluatie!G17 -> 0 | R26: =+Evaluatie!H17 -> 0 | S26: =+Evaluatie!I17 ->  | T26: =+Evaluatie!J17 -> 
B27: 11 | D27: =+Superformule!$G$7 -> 0 | E27: =+Superformule!$G$6 -> 0 | F27: ICT | G27: 2021-11-11 | H27: 100000 | I27: 200 | J27: 100 | K27: 150 | L27: 250 | M27: 119895.7881 | N27: 2 | O27: -1000 | P27: =+Evaluatie!E18 -> 0 | Q27: =+Evaluatie!G18 -> 0 | R27: =+Evaluatie!H18 -> 0 | S27: =+Evaluatie!I18 ->  | T27: =+Evaluatie!J18 -> 
B28: 12 | D28: =+Superformule!$G$7 -> 0 | E28: =+Superformule!$G$6 -> 0 | F28: ICT | G28: 2021-11-11 | H28: 100000 | I28: 200 | J28: 100 | K28: 150 | L28: 250 | M28: 119895.7881 | N28: 2 | O28: -1000 | P28: =+Evaluatie!E19 -> 0 | Q28: =+Evaluatie!G19 -> 0 | R28: =+Evaluatie!H19 -> 0 | S28: =+Evaluatie!I19 ->  | T28: =+Evaluatie!J19 -> 

Sheet BPK-Grafiek (hidden)
B2: Europese Aanbesteding
B3: =Superformule!G6 -> 0
B4: BPK-Grafiek
B5: ="Kenmerk: " & Superformule!G7 -> Kenmerk:
B6: (Prijzen exclusief BTW)
D9: Vergelijkingswaarde
D11: Indicatie eigen score | F11: Score Kwaliteit | G11: Procenten
D12: Kwaliteit in eisen | F12: =+DATA!G41 -> 150 | G12: =+F12/DATA!$G$40*100 -> 60 | H12: %
D13: Eigen inschatting score kwaliteit *1 | G13: =+F13/DATA!$G$40*100 -> 0 | H13: %
E14: Totaal kwaliteit | F14: =SUM(F12:F13) -> 150 | G14: =SUM(G12:G13) -> 60 | H14: %
D15: Indicatie BPK-score | F15: =+DATA!E7 -> 0.8838834765
D16: *1 | E16: ="Eigen inschatting door Inschrijver. Waarde tussen 0 en "&F20&" punten." -> Eigen inschatting door Inschrijver. Waarde tussen 0 en 100 punten.
D18: Opbouw Score voor kwaliteit | F18: Punten | G18: Procenten
D19: Eisen | F19: =DATA!G41 -> 150 | G19: =+F19/DATA!$G$40*100 -> 60 | H19: %
D20: Wensen | F20: =DATA!G42 -> 100 | G20: =+F20/DATA!$G$40*100 -> 40 | H20: %
D21: Totaal | F21: =SUM(F19:F20) -> 250 | G21: =+F21/DATA!$G$40*100 -> 100 | H21: %
C83: Totaal kwaliteit | E83: 1650 | F83: =+E83/Qmax*100 -> 660 | G83: %

Sheet HULP-velden (hidden)
C1: Hulpvelden
C6: Oplossen n=waarde (Solver) | N6: EMVI-lijnen t.b.v grafiek | AL6: Qmax | BF6: Nummerieke waarden naar tekst
O7: hulp=Q bij P=0 | P7: 0 | Q7: =+R7/2 -> 0.0125 | R7: =+S7/2 -> 0.025 | S7: 0.05 | T7: 0.1 | U7: 0.15 | V7: 0.2 | W7: 0.25 | X7: 0.3 | Y7: 0.35 | Z7: 0.4 | AA7: 0.45 | AB7: 0.5 | AC7: 0.55 | AD7: 0.6 | AE7: 0.65 | AF7: 0.7 | AG7: 0.75 | AH7: 0.8 | AI7: 0.85 | AJ7: 0.9 | AK7: 0.95 | AL7: 1 | AM7: 1.05 | AN7: 1.1 | AO7: 1.15 | AP7: 1.2 | AQ7: 1.25 | AR7: 1.3 | AS7: 1.35 | AT7: 1.4 | AU7: 1.45 | AV7: 1.5 | AW7: 1.55 | AX7: 1.6 | AY7: 1.65 | AZ7: 1.7 | BA7: 1.75 | BB7: 1.8
C8: Pmax/Pref | D8: ='HULP-velden'!K75 -> 1.198957881 | E8: =VLOOKUP(TRUE,$C:$E,3,TRUE) -> 2.000062086 | N8: Q berekend bij P=0 en EMVI=1 | O8: ='HULP-velden'!L18 -> 117.1572875 | P8: =IFERROR($O8+P$7*(Qmax-$O8),0) -> 117.1572875 | Q8: =IFERROR($O8+Q$7*(Qmax-$O8),0) -> 118.8178214 | R8: 120.4783553 | S8: 123.7994231 | T8: 130.4415588 | U8: 137.0836944 | V8: 143.72583 | W8: 150.3679656 | X8: 157.0101013 | Y8: 163.6522369 | Z8: 170.2943725 | AA8: 176.9365081 | AB8: 183.5786438 | AC8: 190.2207794 | AD8: 196.862915 | AE8: 203.5050506 | AF8: 210.1471863 | AG8: 216.7893219 | AH8: 223.4314575 | AI8: 230.0735931 | AJ8: 236.7157288 | AK8: 243.3578644 | AL8: 250 | AM8: 256.6421356 | AN8: 263.2842712 | AO8: 269.9264069 | AP8: 276.5685425 | BC8: EMVI | BF8: Qmax | BG8: =Qmax -> 250 | BH8: =TEXT(BG8,"#.##0") -> 250 | BJ8: Winnaar | BK8: =I61 -> 4 | BL8: =TEXT(BK8,"#.##0") -> 4
C9: Q/Qref | D9: =+'HULP-velden'!L17 -> 1.25 | N9: P berekend uit Q en EMVI=1 | P9: 0 | Q9: =IFERROR((2*$BC$9^Exponent-(2-Q8/Qref)^Exponent)^(1/Exponent)*Pref,0) -> 15301.81734 | R9: =IFERROR((2*$BC$9^Exponent-(2-R8/Qref)^Exponent)^(1/Exponent)*Pref,0) -> 21608.15914 | S9: 30468.18565 | T9: 42831.78365 | U9: 52141.67299 | V9: 59840.5168 | W9: 66490.314 | X9: 72380.77976 | Y9: 77684.83583 | Z9: 82515.642 | AA9: 86952.11124 | AB9: 91051.90356 | AC9: 94858.68252 | AD9: 98406.45901 | AE9: 101722.3364 | AF9: 104828.3229 | AG9: 107742.5722 | AH9: 110480.2582 | AI9: 113054.2085 | AJ9: 115475.3727 | AK9: 117753.1755 | AL9: 119895.7881 | AM9: =IFERROR((2*$BC$9^Exponent-(2-AM8/Qref)^Exponent)^(1/Exponent)*Pref,0) -> 121910.3387 | AN9: =IFERROR((2*$BC$9^Exponent-(2-AN8/Qref)^Exponent)^(1/Exponent)*Pref,0) -> 123803.079 | AO9: =IFERROR((2*$BC$9^Exponent-(2-AO8/Qref)^Exponent)^(1/Exponent)*Pref,0) -> 125579.517 | AP9: =IFERROR((2*$BC$9^Exponent-(2-AP8/Qref)^Exponent)^(1/Exponent)*Pref,0) -> 127244.5238 | BC9: =IFERROR('HULP-velden'!H25,0) -> 1 | BF9: Qmin | BG9: =Qmin -> 150 | BH9: =TEXT(BG9,"#.##0") -> 150 | BJ9: Prijs winnaar | BK9: =VLOOKUP($BK$8,'Info BD'!$B$27:$K$31,4,FALSE) -> 92040 | BL9: =TEXT(BK9,"€ #.##0,00") -> € 92.040,00
C10: n | D10: =ROUNDDOWN(VLOOKUP(TRUE,$C:$E,3,TRUE),4) -> 2 | E10: =VLOOKUP(TRUE,$C:$E,2,TRUE) -> 1 | P10: =+P8/Qmax*100 -> 46.86291501 | Q10: 47.52712857 | R10: 48.19134213 | S10: 49.51976926 | T10: 52.17662351 | U10: 54.83347776 | V10: 57.49033201 | W10: 60.14718626 | X10: 62.80404051 | Y10: 65.46089476 | Z10: 68.11774901 | AA10: 70.77460326 | AB10: 73.43145751 | AC10: 76.08831175 | AD10: 78.745166 | AE10: 81.40202025 | AF10: 84.0588745 | AG10: 86.71572875 | AH10: 89.372583 | AI10: 92.02943725 | AJ10: 94.6862915 | AK10: 97.34314575 | AL10: 100 | AM10: =+AM8/Qmax*100 -> 102.6568542 | AN10: =+AN8/Qmax*100 -> 105.3137085 | AO10: =+AO8/Qmax*100 -> 107.9705627 | AP10: =+AP8/Qmax*100 -> 110.627417 | BF10: Qwensen | BG10: =Qwensen -> 100 | BH10: =TEXT(BG10,"#.##0") -> 100 | BJ10: Q-score | BK10: =VLOOKUP($BK$8,'Info BD'!$B$27:$K$31,8,FALSE) -> 235 | BL10: =TEXT(BK10,"#.##0") -> 235
N11: Q berekend bij P=0 en EMVI=0,9 | O11: =IFERROR(Qref*(2-BC12*(2-'HULP-velden'!H$24/Qref)),0) -> 145.4415588 | P11: =IFERROR($O11+P$7*(Qmax-$O11),0) -> 145.4415588 | Q11: 146.7485393 | R11: 148.0555198 | S11: 150.6694808 | T11: 155.8974029 | U11: 161.125325 | V11: 166.353247 | W11: 171.5811691 | X11: 176.8090911 | Y11: 182.0370132 | Z11: 187.2649353 | AA11: 192.4928573 | AB11: 197.7207794 | AC11: 202.9487014 | AD11: 208.1766235 | AE11: 213.4045456 | AF11: 218.6324676 | AG11: 223.8603897 | AH11: 229.0883118 | AI11: 234.3162338 | AJ11: 239.5441559 | AK11: 244.7720779 | AL11: 250 | AM11: 255.2279221 | AN11: 260.4558441 | AO11: 265.6837662 | AP11: 270.9116882 | AQ11: 276.1396103 | BC11: EMVI | BF11: Pref | BG11: =Pref -> 100000 | BH11: =TEXT(BG11,"€ #.##0,00") -> € 100.000,00 | BJ11: BPK-Score | BK11: =VLOOKUP(1,$G$130:$K$134,5,FALSE) -> 0.8740026201 | BL11: =TEXT(BK11,"#.##0,0000") -> 0,8740
C12: Opgelost | D12: Waarde=1 | E12: n | N12: P berekend uit Q en EMVI=0,9 | P12: 0 | Q12: =IFERROR((2*$BC$12^Exponent-(2-Q11/Qref)^Exponent)^(1/Exponent)*Pref,0) -> 12881.165 | R12: =IFERROR((2*$BC$12^Exponent-(2-R11/Qref)^Exponent)^(1/Exponent)*Pref,0) -> 18193.26042 | S12: 25662.67821 | T12: 36103.74664 | U12: 43985.47949 | V12: 50520.28014 | W12: 56180.15148 | X12: 61208.28825 | Y12: 65749.784 | Z12: 69899.55692 | AA12: 73723.78473 | AB12: 77270.81743 | AC12: 80577.26996 | AD12: 83671.66819 | AE12: 86576.75263 | AF12: 89310.99905 | AG12: 91889.65894 | AH12: 94325.4934 | AI12: 96629.30407 | AJ12: 98810.32599 | AK12: 100876.5238 | AL12: 102834.819 | AM12: =IFERROR((2*$BC$12^Exponent-(2-AM11/Qref)^Exponent)^(1/Exponent)*Pref,0) -> 104691.2669 | AN12: =IFERROR((2*$BC$12^Exponent-(2-AN11/Qref)^Exponent)^(1/Exponent)*Pref,0) -> 106451.196 | AO12: =IFERROR((2*$BC$12^Exponent-(2-AO11/Qref)^Exponent)^(1/Exponent)*Pref,0) -> 108119.3199 | AP12: =IFERROR((2*$BC$12^Exponent-(2-AP11/Qref)^Exponent)^(1/Exponent)*Pref,0) -> 109699.8265 | AQ12: =IFERROR((2*$BC$12^Exponent-(2-AQ11/Qref)^Exponent)^(1/Exponent)*Pref,0) -> 111196.4521 | BC12: =0.9*BC9 -> 0.9 | BF12: Qref | BG12: =Qref -> 200 | BH12: =TEXT(BG12,"#.##0") -> 200 | BJ12: Nummer 2 | BK12: =VLOOKUP(2,$G$130:$K$134,5,FALSE) -> 0.8989507773 | BL12: =TEXT(BK12,"#.##0,0000") -> 0,8990
B13: 1 | C13: =IF(AND(D13<=1,D13>=0.9995),TRUE,FALSE) -> FALSE | D13: =ROUNDDOWN((0.5*A^E13+0.5*(2-B)^E13)^(1/E13),4) -> 0.9744 | E13: 1 | P13: =+P11/Qmax*100 -> 58.17662351 | Q13: 58.69941572 | R13: 59.22220792 | S13: 60.26779233 | T13: 62.35896116 | U13: 64.45012998 | V13: 66.54129881 | W13: 68.63246763 | X13: 70.72363646 | Y13: 72.81480528 | Z13: 74.90597411 | AA13: 76.99714293 | AB13: 79.08831175 | AC13: 81.17948058 | AD13: 83.2706494 | AE13: 85.36181823 | AF13: 87.45298705 | AG13: 89.54415588 | AH13: 91.6353247 | AI13: 93.72649353 | AJ13: 95.81766235 | AK13: 97.90883118 | AL13: 100 | AM13: =+AM11/Qmax*100 -> 102.0911688 | AN13: =+AN11/Qmax*100 -> 104.1823376 | AO13: =+AO11/Qmax*100 -> 106.2735065 | AP13: =+AP11/Qmax*100 -> 108.3646753 | AQ13: =+AQ11/Qmax*100 -> 110.4558441 | BF13: Qref punten | BG13: =Qref-Qmin -> 50 | BH13: =TEXT(BG13,"#.##0") -> 50 | BJ13: Nummer 5 | BK13: =VLOOKUP(G135,$G$130:$K$134,5,FALSE) -> 0.9388013661 | BL13: =TEXT(BK13,"#.##0,0000") -> 0,9388
B14: 2 | C14: =IF(AND(D14<=1,D14>=0.9995),TRUE,FALSE) -> FALSE | D14: =ROUNDDOWN((0.5*A^E14+0.5*(2-B)^E14)^(1/E14),4) -> 0.9751 | E14: =IF(D13=1,E13,E13/(D13^E13)) -> 1.026272578 | N14: Q berekend bij P=0 en EMVI=0,8 | O14: =IFERROR(Qref*(2-BC15*(2-'HULP-velden'!H$24/Qref)),0) -> 173.72583 | P14: =IFERROR($O14+P$7*(Qmax-$O14),0) -> 173.72583 | Q14: 174.6792571 | R14: 175.6326843 | S14: 177.5395385 | T14: 181.353247 | U14: 185.1669555 | V14: 188.980664 | W14: 192.7943725 | X14: 196.608081 | Y14: 200.4217895 | Z14: 204.235498 | AA14: 208.0492065 | AB14: 211.862915 | AC14: 215.6766235 | AD14: 219.490332 | AE14: 223.3040405 | AF14: 227.117749 | AG14: 230.9314575 | AH14: 234.745166 | AI14: 238.5588745 | AJ14: 242.372583 | AK14: 246.1862915 | AL14: 250 | AM14: 253.8137085 | AN14: 257.627417 | AO14: 261.4411255 | AP14: 265.254834 | AQ14: 269.0685425 | AR14: 272.882251 | BC14: EMVI | BF14: Exponent | BG14: =Exponent -> 2 | BH14: =TEXT(BG14,"#.##0,0000") -> 2,0000 | BJ14: LAQ | BK14: =LAQ -> -1000 | BL14: =TEXT(BK14,"#.##0") -> -1.000
B15: 3 | C15: FALSE | D15: 0.9758 | E15: =IF(D14=1,E14,E14/(D14^E14)) -> 1.053176779 | G15: Hulpvelden | N15: P berekend uit Q en EMVI=0,8 | P15: 0 | Q15: =IFERROR((2*$BC$15^Exponent-(2-Q14/Qref)^Exponent)^(1/Exponent)*Pref,0) -> 10375.00409 | R15: =IFERROR((2*$BC$15^Exponent-(2-R14/Qref)^Exponent)^(1/Exponent)*Pref,0) -> 14656.97472 | S15: 20684.19129 | T15: 29127.29566 | U15: 35520.28645 | V15: 40837.60473 | W15: 45458.2994 | X15: 49577.53345 | Y15: 53311.67297 | Z15: 56736.80411 | AA15: 59905.95312 | AB15: 62857.85005 | AC15: 65621.81969 | AD15: 68220.70756 | AE15: 70672.72794 | AF15: 72992.68335 | AG15: 75192.79876 | AH15: 77283.30971 | AI15: 79272.88786 | AJ15: 81168.9556 | AK15: 82977.92339 | AL15: 84705.37173 | AM15: =IFERROR((2*$BC$15^Exponent-(2-AM14/Qref)^Exponent)^(1/Exponent)*Pref,0) -> 86356.19285 | AN15: 87934.70249 | AO15: 89444.72916 | AP15: 90889.68621 | AQ15: 92272.63061 | AR15: 93596.31121 | BC15: =0.8*BC9 -> 0.8 | BJ15: Delta LAQ | BK15: =+BK14-BG9 -> -1150 | BL15: =TEXT(BK15,"#.##0") -> -1.150
B16: 4 | C16: FALSE | D16: 0.9765 | E16: 1.080702657 | G16: Q/P-verhouding van Qref / Pref | L16: =IFERROR(Qref/Pref,0) -> 0.002 | P16: =+P14/Qmax*100 -> 69.49033201 | Q16: 69.87170286 | R16: 70.25307371 | S16: 71.01581541 | T16: 72.54129881 | U16: 74.06678221 | V16: 75.59226561 | W16: 77.11774901 | X16: 78.64323241 | Y16: 80.16871581 | Z16: 81.6941992 | AA16: 83.2196826 | AB16: 84.745166 | AC16: 86.2706494 | AD16: 87.7961328 | AE16: 89.3216162 | AF16: 90.8470996 | AG16: 92.372583 | AH16: 93.8980664 | AI16: 95.4235498 | AJ16: 96.9490332 | AK16: 98.4745166 | AL16: 100 | AM16: =+AM14/Qmax*100 -> 101.5254834 | AN16: 103.0509668 | AO16: 104.5764502 | AP16: 106.1019336 | AQ16: 107.627417 | AR16: 109.1529004 | BF16: Teksten voor Beschrijvend documet
B17: 5 | C17: FALSE | D17: 0.9773 | E17: 1.108836334 | G17: Verhouding Qmax / Qref | L17: =IFERROR(Qmax/Qref,0) -> 1.25 | N17: Q berekend bij P=0 en EMVI=0,7 | O17: =IFERROR(Qref*(2-BC18*(2-'HULP-velden'!H$24/Qref)),0) -> 202.0101013 | P17: =IFERROR($O17+P$7*(Qmax-$O17),0) -> 202.0101013 | Q17: 202.609975 | R17: 203.2098487 | S17: 204.4095962 | T17: 206.8090911 | U17: 209.2085861 | V17: 211.608081 | W17: 214.007576 | X17: 216.4070709 | Y17: 218.8065658 | Z17: 221.2060608 | AA17: 223.6055557 | AB17: 226.0050506 | AC17: 228.4045456 | AD17: 230.8040405 | AE17: 233.2035354 | AF17: 235.6030304 | AG17: 238.0025253 | AH17: 240.4020203 | AI17: 242.8015152 | AJ17: 245.2010101 | AK17: 247.6005051 | AL17: 250 | AM17: 252.3994949 | AN17: 254.7989899 | AO17: 257.1984848 | AP17: 259.5979797 | AQ17: 261.9974747 | AR17: 264.3969696 | AS17: 266.7964646 | AT17: 269.1959595 | AU17: 271.5954544 | BC17: EMVI | BF17: Beste prijs-kwaliteitverhouding
B18: 6 | C18: FALSE | D18: 0.978 | E18: 1.137430518 | G18: Waarde van Q voor P=0 | L18: =(2-2^(1/Exponent))*Qref -> 117.1572875 | N18: P berekend uit Q en EMVI=0,7 | P18: 0 | Q18: =IFERROR((2*$BC$18^Exponent-(2-Q17/Qref)^Exponent)^(1/Exponent)*Pref,0) -> 7700.29271 | R18: =IFERROR((2*$BC$18^Exponent-(2-R17/Qref)^Exponent)^(1/Exponent)*Pref,0) -> 10881.59416 | S18: 15365.4966 | T18: 21663.75276 | U18: 26451.0698 | V18: 30448.66525 | W18: 33936.77281 | X18: 37059.53447 | Y18: 39902.81761 | Z18: 42522.72125 | AA18: 44958.31408 | AB18: 47238.11384 | AC18: 49383.70181 | AD18: 51411.88406 | AE18: 53336.05584 | AF18: 55167.10156 | AG18: 56914.01013 | AH18: 58584.30861 | AI18: 60184.37582 | AJ18: 61719.6742 | AK18: 63194.92453 | AL18: 64614.23992 | AM18: =IFERROR((2*$BC$18^Exponent-(2-AM17/Qref)^Exponent)^(1/Exponent)*Pref,0) -> 65981.23011 | AN18: 67299.08368 | AO18: 68570.63376 | AP18: 69798.41099 | AQ18: 70984.68674 | AR18: 72131.50863 | AS18: 73240.73004 | AT18: 74314.03466 | AU18: 75352.95727 | BC18: =0.7*BC9 -> 0.7 | BF18: Referentiewaarde voor prijs
B19: 7 | C19: FALSE | D19: 0.9788 | E19: 1.166577936 | G19: Aanbevolen waarde punt C (dit is de exacte cirkel met n=2) | L19: =IFERROR((2-(2-'HULP-velden'!$L$17)^2)^0.5,0) -> 1.198957881 | P19: =+P17/Qmax*100 -> 80.80404051 | Q19: 81.04399 | R19: 81.28393949 | S19: 81.76383848 | T19: 82.72363646 | U19: 83.68343443 | V19: 84.64323241 | W19: 85.60303038 | X19: 86.56282835 | Y19: 87.52262633 | Z19: 88.4824243 | AA19: 89.44222228 | AB19: 90.40202025 | AC19: 91.36181823 | AD19: 92.3216162 | AE19: 93.28141418 | AF19: 94.24121215 | AG19: 95.20101013 | AH19: 96.1608081 | AI19: 97.12060608 | AJ19: 98.08040405 | AK19: 99.04020203 | AL19: 100 | AM19: =+AM17/Qmax*100 -> 100.959798 | AN19: 101.9195959 | AO19: 102.8793939 | AP19: 103.8391919 | AQ19: 104.7989899 | AR19: 105.7587878 | AS19: 106.7185858 | AT19: 107.6783838 | AU19: 108.6381818 | BF19: De referentiewaarde voor prijs (Pref) is een optelling van de referentiewaarden van de kostencomponenten zoals weergeven in Bijlage XX Prijzenformulier.
B20: 8 | C20: FALSE | D20: 0.9795 | E20: 1.196106852 | G20: Maximale waarde punt C (dit is een lineaire lijn met n=1) | L20: =+'HULP-velden'!L17 -> 1.25 | N20: Q berekend bij P=0 en EMVI=0,6 | O20: =IFERROR(Qref*(2-BC21*(2-'HULP-velden'!H$24/Qref)),0) -> 230.2943725 | P20: =IFERROR($O20+P$7*(Qmax-$O20),0) -> 230.2943725 | Q20: 230.5406929 | R20: 230.7870132 | S20: 231.2796539 | T20: 232.2649353 | U20: 233.2502166 | V20: 234.235498 | W20: 235.2207794 | X20: 236.2060608 | Y20: 237.1913421 | Z20: 238.1766235 | AA20: 239.1619049 | AB20: 240.1471863 | AC20: 241.1324676 | AD20: 242.117749 | AE20: 243.1030304 | AF20: 244.0883118 | AG20: 245.0735931 | AH20: 246.0588745 | AI20: 247.0441559 | AJ20: 248.0294373 | AK20: 249.0147186 | AL20: 250 | AM20: 250.9852814 | AN20: 251.9705627 | AO20: 252.9558441 | AP20: 253.9411255 | AQ20: 254.9264069 | AR20: 255.9116882 | AS20: 256.8969696 | AT20: 257.882251 | AU20: 258.8675324 | AV20: 259.8528137 | AW20: 260.8380951 | AX20: 261.8233765 | AY20: 262.8086579 | AZ20: 263.7939392 | BA20: 264.7792206 | BB20: 265.764502 | BC20: EMVI | BF20: ="Deze waarden zijn bepaald op basis van onze huidige ervaringen, inzichten en het budgetkader voor de komende jaren. Het betreft een inschatting waar geen rechten aan te ontlenen zijn. De referentiewaarde voor prijs (Pref) is " & BH11 & "." -> Deze waarden zijn bepaald op basis van onze huidige ervaringen, inzichten en het budgetkader voor de komende jaren. Het betreft een inschatting waar geen rechten aan te ontlenen zijn. De referentiewaarde voor prijs (Pref) is € 100.000,00.
B21: 9 | C21: FALSE | D21: 0.9803 | E21: 1.226110548 | G21: Drie punten van de EMVI-Supercirkel | N21: P berekend uit Q en EMVI=0,6 | P21: 0 | Q21: =IFERROR((2*$BC$21^Exponent-(2-Q20/Qref)^Exponent)^(1/Exponent)*Pref,0) -> 4570.099102 | R21: =IFERROR((2*$BC$21^Exponent-(2-R20/Qref)^Exponent)^(1/Exponent)*Pref,0) -> 6460.748777 | S21: 9130.235599 | T21: 12893.29339 | U21: 15767.92431 | V21: 18180.55198 | W21: 20296.6035 | X21: 22201.04428 | Y21: 23944.41962 | Z21: 25559.70863 | AA21: 27069.8502 | AB21: 28491.56866 | AC21: 29837.50643 | AD21: 31117.49838 | AE21: 32339.37586 | AF21: 33509.49667 | AG21: 34633.10719 | AH21: 35714.59744 | AI21: 36757.68542 | AJ21: 37765.55328 | AK21: 38740.94994 | AL21: 39686.26967 | AM21: =IFERROR((2*$BC$21^Exponent-(2-AM20/Qref)^Exponent)^(1/Exponent)*Pref,0) -> 40603.61324 | AN21: 41494.83615 | AO21: 42361.58703 | AP21: 43205.33873 | AQ21: 44027.41355 | AR21: 44829.00405 | AS21: 45611.19023 | AT21: 46374.95396 | AU21: 47121.19104 | AV21: 47850.72148 | AW21: 48564.29818 | AX21: 49262.61441 | AY21: 49946.31028 | AZ21: 50615.97824 | BA21: 51272.16794 | BB21: 51915.39048 | BC21: =0.6*BC9 -> 0.6 | BF21: Referentiewaarde voor kwaliteit
B22: 10 | C22: FALSE | D22: 0.9811 | E22: 1.25638993 | H22: Qmin | I22: Referentie | J22: Qmax | P22: =+P20/Qmax*100 -> 92.11774901 | Q22: 92.21627714 | R22: 92.31480528 | S22: 92.51186156 | T22: 92.90597411 | U22: 93.30008666 | V22: 93.6941992 | W22: 94.08831175 | X22: 94.4824243 | Y22: 94.87653685 | Z22: 95.2706494 | AA22: 95.66476195 | AB22: 96.0588745 | AC22: 96.45298705 | AD22: 96.8470996 | AE22: 97.24121215 | AF22: 97.6353247 | AG22: 98.02943725 | AH22: 98.4235498 | AI22: 98.81766235 | AJ22: 99.2117749 | AK22: 99.60588745 | AL22: 100 | AM22: =+AM20/Qmax*100 -> 100.3941125 | AN22: 100.7882251 | AO22: 101.1823376 | AP22: 101.5764502 | AQ22: 101.9705627 | AR22: 102.3646753 | AS22: 102.7587878 | AT22: 103.1529004 | AU22: 103.5470129 | AV22: 103.9411255 | AW22: 104.335238 | AX22: 104.7293506 | AY22: 105.1234631 | AZ22: 105.5175757 | BA22: 105.9116882 | BB22: 106.3058008 | BF22: ="In totaal kunnen " & BH8 & " punten voor kwaliteit worden gescoord (Qmax). Indien een Inschrijver voldoet aan alle gunningseisen wordt daarvoor " & BH9 & " punten verkregen. Bij het niet voldoen aan de gunningseisen wordt de Inschrijving ter zijde gelegd). " -> In totaal kunnen 250 punten voor kwaliteit worden gescoord (Qmax). Indien een Inschrijver voldoet aan alle gunningseisen wordt daarvoor 150 punten verkregen. Bij het niet voldoen aan de gunningseisen wordt de Inschrijving ter zijde gelegd).
B23: 11 | C23: FALSE | D23: 0.9819 | E23: 1.28687334 | G23: P | H23: 0 | I23: =IF(ISERROR(Pref),100000,Pref) -> 100000 | J23: =Pmax -> 119895.7881 | K23: 297101.4493 | N23: Q berekend bij P=0 en EMVI=1,1 | O23: =IFERROR(Qref*(2-BC24*(2-'HULP-velden'!H$24/Qref)),0) -> 88.87301628 | P23: =IFERROR($O23+P$7*(Qmax-$O23),0) -> 88.87301628 | Q23: 90.88710357 | R23: 92.90119087 | S23: 96.92936546 | T23: 104.9857147 | U23: 113.0420638 | V23: 121.098413 | W23: 129.1547622 | X23: 137.2111114 | Y23: 145.2674606 | Z23: 153.3238098 | AA23: 161.380159 | AB23: 169.4365081 | AC23: 177.4928573 | AD23: 185.5492065 | AE23: 193.6055557 | AF23: 201.6619049 | AG23: 209.7182541 | AH23: 217.7746033 | AI23: 225.8309524 | AJ23: 233.8873016 | AK23: 241.9436508 | AL23: 250 | AM23: 258.0563492 | AN23: 266.1126984 | AO23: 274.1690476 | AP23: 282.2253967 | AQ23: 290.2817459 | AR23: 298.3380951 | AS23: 306.3944443 | AT23: 314.4507935 | AU23: 322.5071427 | AV23: 330.5634919 | AW23: 338.619841 | AX23: 346.6761902 | AY23: 354.7325394 | AZ23: 362.7888886 | BA23: 370.8452378 | BB23: 378.901587 | BC23: EMVI | BF23: ="De overige " & BH10 & " punten zijn verdeeld over de wensen." -> De overige 100 punten zijn verdeeld over de wensen.
B24: 12 | C24: FALSE | D24: 0.9827 | E24: 1.317480619 | G24: Q | H24: =+'HULP-velden'!L18 -> 117.1572875 | I24: =Qref -> 200 | J24: =Qmax -> 250 | K24: =+Qmin -> 150 | N24: P berekend uit Q en EMVI=1,1 | P24: 0 | Q24: =IFERROR((2*$BC$24^Exponent-(2-Q23/Qref)^Exponent)^(1/Exponent)*Pref,0) -> 17672.13388 | R24: =IFERROR((2*$BC$24^Exponent-(2-R23/Qref)^Exponent)^(1/Exponent)*Pref,0) -> 24951.56023 | S24: 35171.68777 | T24: 49412.98271 | U24: 60114.77121 | V24: 68945.45812 | W24: 76555.30218 | X24: 83279.64941 | Y24: 89318.71775 | Z24: 94803.55633 | AA24: 99825.56218 | AB24: 104451.5153 | AC24: 108731.9772 | AD24: 112706.3188 | AE24: 116405.8991 | AF24: 119856.1638 | AG24: 123078.0821 | AH24: 126089.1597 | AI24: 128904.1726 | AJ24: 131535.7094 | AK24: 133994.5806 | AL24: 136290.1317 | AM24: =IFERROR((2*$BC$24^Exponent-(2-AM23/Qref)^Exponent)^(1/Exponent)*Pref,0) -> 138430.488 | AN24: =IFERROR((2*$BC$24^Exponent-(2-AN23/Qref)^Exponent)^(1/Exponent)*Pref,0) -> 140422.7461 | AO24: =IFERROR((2*$BC$24^Exponent-(2-AO23/Qref)^Exponent)^(1/Exponent)*Pref,0) -> 142273.1277 | AP24: =IFERROR((2*$BC$24^Exponent-(2-AP23/Qref)^Exponent)^(1/Exponent)*Pref,0) -> 143987.1026 | AQ24: =IFERROR((2*$BC$24^Exponent-(2-AQ23/Qref)^Exponent)^(1/Exponent)*Pref,0) -> 145569.4892 | AR24: 147024.5363 | AS24: 148355.9907 | AT24: 149567.1532 | AU24: 150660.9248 | AV24: 151639.8458 | AW24: 152506.1278 | AX24: 153261.6809 | AY24: 153908.1358 | AZ24: 154446.8624 | BA24: 154878.9849 | BB24: 155205.3937 | BC24: 1.1
B25: 13 | C25: FALSE | D25: 0.9835 | E25: 1.348122878 | G25: EMVI | H25: =IFERROR(((0.5*(H23/Pref)^Exponent+0.5*(2-(H24/Qref))^Exponent)^(1/Exponent)),0) -> 1 | I25: =IFERROR((0.5*(I23/Pref)^Exponent+0.5*(2-(I24/Qref))^Exponent)^(1/Exponent),0) -> 1 | J25: =IFERROR((0.5*(J23/Pref)^Exponent+0.5*(2-(J24/Qref))^Exponent)^(1/Exponent),0) -> 1 | K25: =IFERROR((0.5*(K23/Pref)^Exponent+0.5*(2-(K24/Qref))^Exponent)^(1/Exponent),0) -> 2.279191426 | P25: =+P23/Qmax*100 -> 35.54920651 | Q25: 36.35484143 | R25: 37.16047635 | S25: 38.77174619 | T25: 41.99428586 | U25: 45.21682553 | V25: 48.43936521 | W25: 51.66190488 | X25: 54.88444456 | Y25: 58.10698423 | Z25: 61.32952391 | AA25: 64.55206358 | AB25: 67.77460326 | AC25: 70.99714293 | AD25: 74.2196826 | AE25: 77.44222228 | AF25: 80.66476195 | AG25: 83.88730163 | AH25: 87.1098413 | AI25: 90.33238098 | AJ25: 93.55492065 | AK25: 96.77746033 | AL25: 100 | AM25: =+AM23/Qmax*100 -> 103.2225397 | AN25: =+AN23/Qmax*100 -> 106.4450793 | AO25: =+AO23/Qmax*100 -> 109.667619 | AP25: =+AP23/Qmax*100 -> 112.8901587 | AQ25: =+AQ23/Qmax*100 -> 116.1126984 | AR25: 119.335238 | AS25: 122.5577777 | AT25: 125.7803174 | AU25: 129.0028571 | AV25: 132.2253967 | AW25: 135.4479364 | AX25: 138.6704761 | AY25: 141.8930158 | AZ25: 145.1155554 | BA25: 148.3380951 | BB25: 151.5606348 | BF25: ="Uitgaande van de referentiewaarde voor prijs (Pref) is bepaald welk kwaliteitsniveau de Aanbestedende dienst hierbij verwacht. Dit verwacht kwaliteitsniveau wordt benoemd als referentiewaarde voor kwaliteit (Qref) en is gesteld op " & BH12 & " punten. " -> Uitgaande van de referentiewaarde voor prijs (Pref) is bepaald welk kwaliteitsniveau de Aanbestedende dienst hierbij verwacht. Dit verwacht kwaliteitsniveau wordt benoemd als referentiewaarde voor kwaliteit (Qref) en is gesteld op 200 punten.
B26: 14 | C26: FALSE | D26: 0.9842 | E26: 1.378702375 | BF26: ="Dit betreft de "&BH9&" punten die worden verkregen door te voldoen aan de gunningseisen en " & BH13 & " van de "&BH10&" die verkregen kunnen worden op basis van de wensen." -> Dit betreft de 150 punten die worden verkregen door te voldoen aan de gunningseisen en 50 van de 100 die verkregen kunnen worden op basis van de wensen.
B27: 15 | C27: FALSE | D27: 0.985 | E27: 1.409309926 | G27: Verhoudingen (indicatief)
B28: 16 | C28: FALSE | D28: 0.9858 | E28: 1.439649916 | G28: Links van de Referentie | H28: rc= | I28: =IFERROR(('HULP-velden'!L17-1)/('HULP-velden'!K75-1),1) -> 1.25654736 | N28: Hulpvelden voor grafiek (as-label) | BF28: BPK-formule
B29: 17 | C29: FALSE | D29: 0.9866 | E29: 1.469598939 | G29: Rechts van de Referentie | H29: rc= | I29: =IFERROR(1-('HULP-velden'!L18/Superformule!#REF!),1) -> 1 | N29: Labels | O29: X-as | P29: Y-as | Q29: Lok-lijn | BF29: De hierboven beschreven benadering vertaalt zich naar onderstaande formule voor het bepalen van de beste prijs-/kwaliteitverhouding:
B30: 18 | C30: FALSE | D30: 0.9873 | E30: 1.49902559 | N30: 0 | O30: =+$O$40*N30 -> 0 | P30: =+$P$40*N30 -> 0 | S30: 0 | T30: 0 | U30: =(T30*(2-T30)^(Exponent-1))^(1/Exponent) -> 0
B31: 19 | C31: FALSE | D31: 0.9881 | E31: 1.528023144 | G31: Analyse EMVI-Supercirkel | N31: 0.1 | O31: 10000 | P31: 20 | S31: 0.1 | T31: 0.1 | U31: 0.4358898944 | V31: =+P31 -> 20 | W31: =(+$O$40/1)*U31 -> 43588.98944
B32: 20 | C32: FALSE | D32: 0.9888 | E32: 1.556231776 | G32: Inschrijver A+ | H32: =0.8*H35 -> 68556.546 | I32: =+J32/Qmax*100 -> 70 | J32: =Qmin+0.25*Qwensen -> 175 | K32: =+J32-Qmin -> 25 | N32: 0.2 | O32: 20000 | P32: 40 | S32: 0.2 | T32: 0.2 | U32: 0.6 | V32: =+P32 -> 40 | W32: =(+$O$40/1)*U32 -> 60000 | BF32: Toelichting symbolen:
B33: 21 | C33: FALSE | D33: 0.9895 | E33: 1.583750088 | G33: Inschrijver B+ | H33: =0.8*H36 -> 80000 | I33: 80 | J33: =Qmin+0.5*Qwensen -> 200 | K33: 50 | N33: 0.3 | O33: 30000 | P33: 60 | S33: 0.3 | T33: 0.3 | U33: 0.7141428429 | V33: 60 | W33: =(+$O$40/1)*U33 -> 71414.28429 | BF33: Pi = Vergelijkingswaarde Inschrijver
B34: 22 | C34: FALSE | D34: 0.9902 | E34: 1.61044865 | G34: Inschrijver C+ | H34: =0.8*H37 -> 88881.94417 | I34: 90 | J34: =Qmin+0.75*Qwensen -> 225 | K34: 75 | N34: 0.4 | O34: 40000 | P34: 80 | S34: 0.4 | T34: 0.4 | U34: 0.8 | V34: 80 | W34: 80000 | BF34: Qi = Kwaliteitsscore Inschrijver
B35: 23 | C35: FALSE | D35: 0.9908 | E35: 1.636194378 | G35: Inschrijver A | H35: =IFERROR((2*1^Exponent-(2-J35/Qref)^Exponent)^(1/Exponent)*Pref,0) -> 85695.68251 | I35: 70 | J35: =Qmin+0.25*Qwensen -> 175 | K35: 25 | N35: 0.5 | O35: 50000 | P35: 100 | S35: 0.5 | T35: 0.5 | U35: 0.8660254038 | V35: 100 | W35: 86602.54038 | BF35: ="Pref = Referentiewaarde voor prijs = " & BH11 -> Pref = Referentiewaarde voor prijs = € 100.000,00
B36: 24 | C36: FALSE | D36: 0.9915 | E36: 1.66112603 | G36: Inschrijver B | H36: =IFERROR((2*1^Exponent-(2-J36/Qref)^Exponent)^(1/Exponent)*Pref,0) -> 100000 | I36: 80 | J36: =Qmin+0.5*Qwensen -> 200 | K36: 50 | N36: 0.6 | O36: 60000 | P36: 120 | S36: 0.6 | T36: 0.6 | U36: 0.916515139 | V36: 120 | W36: 91651.5139 | BF36: ="Qref = Referentiewaarde voor kwaliteit = " & BH12 -> Qref = Referentiewaarde voor kwaliteit = 200
B37: 25 | C37: FALSE | D37: 0.9921 | E37: 1.684848461 | G37: Inschrijver C | H37: =IFERROR((2*1^Exponent-(2-J37/Qref)^Exponent)^(1/Exponent)*Pref,0) -> 111102.4302 | I37: 90 | J37: =Qmin+0.75*Qwensen -> 225 | K37: 75 | N37: 0.7 | O37: 70000 | P37: 140 | S37: 0.7 | T37: 0.7 | U37: 0.9539392014 | V37: 140 | W37: 95393.92014 | BF37: ="n ≈ " &BH14 -> n ≈ 2,0000
B38: 26 | C38: FALSE | D38: 0.9926 | E38: 1.707514463 | G38: Inschrijver A- | H38: =1.2*H35 -> 102834.819 | I38: 70 | J38: =Qmin+0.25*Qwensen -> 175 | K38: 25 | N38: 0.8 | O38: 80000 | P38: 160 | S38: 0.8 | T38: 0.8 | U38: 0.9797958971 | V38: 160 | W38: 97979.58971
B39: 27 | C39: FALSE | D39: 0.9932 | E39: 1.729308077 | G39: Inschrijver B- | H39: =1.2*H36 -> 120000 | I39: 80 | J39: =Qmin+0.5*Qwensen -> 200 | K39: 50 | N39: 0.9 | O39: 90000 | P39: 180 | S39: 0.9 | T39: 0.9 | U39: 0.9949874371 | V39: 180 | W39: 99498.74371 | BF39: Deze formule bepaalt de BPK-score voor de prijs/kwaliteitsverhouding van de Inschrijving. De BPK-formule is ter verduidelijking in onderstane grafiek weergegeven.
B40: 28 | C40: FALSE | D40: 0.9937 | E40: 1.749833835 | G40: Inschrijver C- | H40: =1.2*H37 -> 133322.9163 | I40: 90 | J40: =Qmin+0.75*Qwensen -> 225 | K40: 75 | L40: =Qref -> 200 | N40: 1 | O40: =IF(Pref<=0,100000,Pref) -> 100000 | P40: =Qref -> 200 | S40: 1 | T40: 1 | U40: 1 | V40: 200 | W40: 100000
B41: 29 | C41: FALSE | D41: 0.9942 | E41: 1.769292337 | N41: 1.1 | O41: =+$O$40*N41 -> 110000 | P41: =+$P$40*N41 -> 220 | S41: 1.1 | T41: 1.1 | U41: 0.9949874371 | V41: 220 | W41: 99498.74371 | BF41: De referentie inschrijving is een Inschrijving die gelijk is aan de referentiewaarde Pref en Qref. De BPK-score voor een referentie inschrijving is BPK-score = 1. Deze score geldt voor de gehele niet-onderbroken oranje lijn. De lichtere oranje lijnen geven indicatief de BPK-scores weer van respectievelijk 0.9, 0.8 en 0.7 (van links naar rechts).
B42: 30 | C42: FALSE | D42: 0.9947 | E42: 1.787595512 | G42: Hulpvelden | N42: 1.2 | O42: 120000 | P42: 240 | S42: 1.2 | T42: 1.2 | U42: 0.9797958971 | V42: 240 | W42: 97979.58971 | BF42: Afhankelijk van de prijsstelling en kwaliteitsscore wordt de BPK-score voor de ontvangen Inschrijvingen op basis van de BPK-formule bepaald. De Inschrijver met de laagste BPK-score krijgt de opdracht voorlopig gegund. De BPK-scores worden niet afgerond. Indien 2 Inschrijvers exact dezelfde laagste BPK-score halen, dan gaat de Inschrijver met de hoogste kwaliteit voor op de Inschrijver met een lagere prijs.
B43: 31 | C43: FALSE | D43: 0.9951 | E43: 1.804657602 | G43: Qmax | H43: =Superformule!K13/Qmax*100 -> 100 | I43: =Superformule!K13/Qmax*100 -> 100 | L43: =Qmax -> 250 | N43: 1.3 | O43: 130000 | P43: 260 | S43: 1.3 | T43: 1.3 | U43: 0.9539392014 | V43: 260 | W43: 95393.92014
B44: 32 | C44: FALSE | D44: 0.9955 | E44: 1.82072621 | G44: Qmin | H44: =Superformule!K11/Qmax*100 -> 60 | I44: =Superformule!K11/Qmax*100 -> 60 | N44: 1.4 | O44: 140000 | P44: 280 | S44: 1.4 | T44: 1.4 | U44: 0.916515139 | V44: 280 | W44: 91651.5139 | BF44: ="Ter illustratie zijn in de BPK-grafiek de scores van 5 Inschrijvers weergegeven. " -> Ter illustratie zijn in de BPK-grafiek de scores van 5 Inschrijvers weergegeven.
B45: 33 | C45: FALSE | D45: 0.9959 | E45: 1.83573913 | G45: Qref | H45: =Qref/Qmax*100 -> 80 | I45: =Qref/Qmax*100 -> 80 | N45: 1.5 | O45: 150000 | P45: 300 | S45: 1.5 | T45: 1.5 | U45: 0.8660254038 | V45: 300 | W45: 86602.54038 | BF45: ="De winnende Inschrijver in dit voorbeeld is Inschrijver "& BL8 & ", met een vergelijkingswaarde (Pi) van "& BL9 & " " -> De winnende Inschrijver in dit voorbeeld is Inschrijver 4, met een vergelijkingswaarde (Pi) van € 92.040,00
B46: 34 | C46: FALSE | D46: 0.9962 | E46: 1.84963662 | G46: Q | H46: 0 | I46: =+Superformule!K13*1.1 -> 275 | N46: 1.6 | O46: 160000 | P46: 320 | S46: 1.6 | T46: 1.6 | U46: 0.8 | V46: 320 | W46: 80000 | BF46: =" en een kwaliteitsscore (Qi) van " & BL10 & " dat resulteert in de laagste BPK-score van " & BL11 & ". De overige Inschrijvers hebben hogere BPK-scores (van "& BL12 & " tot "& BL13 &")." -> en een kwaliteitsscore (Qi) van 235 dat resulteert in de laagste BPK-score van 0,8740. De overige Inschrijvers hebben hogere BPK-scores (van 0,8990 tot 0,9388).
B47: 35 | C47: FALSE | D47: 0.9965 | E47: 1.862707745 | G47: P | H47: 0 | I47: =+O50 -> 200000 | N47: 1.7 | O47: 170000 | P47: 340 | S47: 1.7 | T47: 1.7 | U47: 0.7141428429 | V47: 340 | W47: 71414.28429
B48: 36 | C48: FALSE | D48: 0.9968 | E48: 1.874912738 | G48: Pref | H48: =Pref -> 100000 | I48: =Pref -> 100000 | N48: 1.8 | O48: 180000 | P48: 360 | Q48: =Qmax -> 250 | S48: 1.8 | T48: 1.8 | U48: 0.6 | V48: 360 | W48: 60000 | BF48: Als extra ondersteuning is in bijlage X Prijzenformulier, in het tabblad ‘BPK-Grafiek’ de betreffende grafiek opgenomen. Aan de hand van de vergelijkingswaarde (Pi) en een eigen inschatting van de kwaliteitsscore (Qi) kan de Inschrijver zijn eigen positie in de grafiek indicatief bepalen.
B49: 37 | C49: FALSE | D49: 0.9971 | E49: 1.886213649 | G49: Qref | H49: 0 | I49: =Pref -> 100000 | N49: 1.9 | O49: 190000 | P49: 380 | S49: 1.9 | T49: 1.9 | U49: 0.4358898944 | V49: 380 | W49: 43588.98944
B50: 38 | C50: FALSE | D50: 0.9974 | E50: 1.896574617 | G50: Pref | H50: 0 | I50: =Qref -> 200 | N50: 2 | O50: 200000 | P50: 400 | S50: 2 | T50: 2 | U50: 0 | BF50: Weging van de wensen
B51: 39 | C51: FALSE | D51: 0.9976 | E51: 1.90596214 | G51: Ref lijn | H51: 0 | I51: 0 | N51: 2.1 | O51: =+$O$40*N51 -> 210000 | P51: =+$P$40*N51 -> 420 | BF51: ="In totaal kunnen "&BH8&" punten worden gescoord. "&BH9&" door te voldoen aan alle gunningseisen en "&BH10&" door maximaal te scoren op alle wensen. " -> In totaal kunnen 250 punten worden gescoord. 150 door te voldoen aan alle gunningseisen en 100 door maximaal te scoren op alle wensen.
B52: 40 | C52: FALSE | D52: 0.9978 | E52: 1.914711098 | G52: Ref lijn | H52: =Pref -> 100000 | I52: =Qref -> 200 | N52: 2.2 | O52: =+$O$40*N52 -> 220000 | P52: =+$P$40*N52 -> 440 | BF52: ="De verdeling van de " & BH10 & " punten over de wensen is in onderstaande tabel weergegeven. Het totaal aantal punten voor kwaliteit aan een Inschrijving toegekend wordt in de BPK-formule weergegeven met Qi." -> De verdeling van de 100 punten over de wensen is in onderstaande tabel weergegeven. Het totaal aantal punten voor kwaliteit aan een Inschrijving toegekend wordt in de BPK-formule weergegeven met Qi.
B53: 41 | C53: FALSE | D53: 0.998 | E53: 1.922802493 | G53: Bonus (extra) | H53: =(Qmin+Qwensen+150)/(Qmin+Qwensen)*100 -> 160 | I53: =+H53 -> 160 | M53: factor | N53: 2.1 | O53: 20 | P53: 28
B54: 42 | C54: FALSE | D54: 0.9982 | E54: 1.9302185 | G54: Referentie | H54: =Pref -> 100000 | I54: =Qref/Qmax*100 -> 80 | BF54: < Hieronder kan de beschrijving van de score-systematiek voor kwaliteit (wensen) worden weergegeven…>
B55: 43 | C55: FALSE | D55: 0.9984 | E55: 1.936942566 | G55: Referentie (Qmax) | H55: =+J23 -> 119895.7881 | I55: =+J24/Qmax*100 -> 100 | N55: Hulpvelden voor grafiek (as-label)
B56: 44 | C56: FALSE | D56: 0.9985 | E56: 1.942959494 | G56: Referentie (onder) | H56: =+H23 -> 0 | I56: =+H24 -> 117.1572875 | O56: X-as | P56: Y-as | Q56: bovengrens X-as
B57: 45 | C57: FALSE | D57: 0.9987 | E57: 1.948634655 | G57: LAQ | H57: =IF(+Superformule!K22>Qmin,+Superformule!K22,-10) -> -10 | I57: =+H57 -> -10 | N57: ondergrens | O57: 0 | P57: 0 | BF57: Optie teksten | BG57: =IF(LAQ>Qmin,"1","0") -> 0
B58: 46 | C58: FALSE | D58: 0.9988 | E58: 1.953580463 | G58: LAQ (norm) | H58: =+H57/Qmax*100 -> -4 | I58: =+I57/Qmax*100 -> -4 | N58: bovengrens | O58: 120 | P58: =VLOOKUP(N53,$N$31:$P$50,2,TRUE) -> 200000 | Q58: =+Qmax -> 250 | S58: =AFRONDEN.NAAR.BOVEN(ALS(P45<Q50;Q50;P45);-2) | BF58: Minimale score kwaliteit Inschrijver
B59: 47 | C59: FALSE | D59: 0.9989 | E59: 1.958168363 | N59: primaire eenheid | O59: 10 | P59: =IF(+O31=0,10,+O31) -> 10000 | BF59: ="De Lowest Acceptable Quality (LAQ) betreft het minimale aantal kwaliteitspunten van een Inschrijving om voor gunning in aanmerking te komen. Dit is vastgesteld op "& BL14 & " punten en " -> De Lowest Acceptable Quality (LAQ) betreft het minimale aantal kwaliteitspunten van een Inschrijving om voor gunning in aanmerking te komen. Dit is vastgesteld op -1.000 punten en
B60: 48 | C60: FALSE | D60: 0.999 | E60: 1.962393101 | G60: Winnaar | H60: van tabblad evaluatie | I60: Winnaar | J60: van tabblad Info BD | BF60: ="betreft de "& BH9 & " punten die worden verkregen door te voldoen aan de Gunningseisen vermeerderd met " & BL15 & " punten van de " & BH10 & " punten die verkregen kunnen worden met de Wensen." -> betreft de 150 punten die worden verkregen door te voldoen aan de Gunningseisen vermeerderd met -1.150 punten van de 100 punten die verkregen kunnen worden met de Wensen.
B61: 49 | C61: FALSE | D61: 0.9991 | E61: 1.9662498 | G61: =N93 ->  | I61: =M127 -> 4 | N61: hoogte as-label | O61: 20 | P61: 33 | Q61: inputveld vanuit macro "Grafiek"
B62: 50 | C62: FALSE | D62: 0.9992 | E62: 1.969733974
B63: 51 | C63: FALSE | D63: 0.9993 | E63: 1.972841547 | G63: Bovengrens | H63: =IF(+Superformule!K20<=0,-1000,+Superformule!K20) -> -1000 | I63: =+H63 -> -1000 | N63: 45 graden | O63: 0 | P63: 0 | Q63: 0 | R63: 0 | V63: 0.2 | W63: 0.25 | X63: 0.3 | Y63: 0.35 | Z63: 0.4 | AA63: 0.45 | AB63: 0.5 | AC63: 0.55 | AD63: 0.6 | AE63: 0.65 | AF63: 0.7 | AG63: 0.75 | AH63: 0.8 | AI63: 0.85 | AJ63: 0.9 | AK63: 0.95 | AL63: 1
B64: 52 | C64: FALSE | D64: 0.9993 | E64: 1.975568857 | H64: =Qmin/Qmax*100 -> 60 | I64: =Qmax/Qmax*(100) -> 100 | N64: lijn | O64: 1 | P64: 1 | Q64: =+'HULP-velden'!O40 -> 100000 | R64: =+'HULP-velden'!P40 -> 200 | V64: =IFERROR(#REF!+V$7*(Qmax-#REF!),0) -> 0 | W64: =IFERROR(#REF!+W$7*(Qmax-#REF!),0) -> 0 | X64: =IFERROR(#REF!+X$7*(Qmax-#REF!),0) -> 0 | Y64: =IFERROR(#REF!+Y$7*(Qmax-#REF!),0) -> 0 | Z64: =IFERROR(#REF!+Z$7*(Qmax-#REF!),0) -> 0 | AA64: =IFERROR(#REF!+AA$7*(Qmax-#REF!),0) -> 0 | AB64: =IFERROR(#REF!+AB$7*(Qmax-#REF!),0) -> 0 | AC64: =IFERROR(#REF!+AC$7*(Qmax-#REF!),0) -> 0 | AD64: =IFERROR(#REF!+AD$7*(Qmax-#REF!),0) -> 0 | AE64: =IFERROR(#REF!+AE$7*(Qmax-#REF!),0) -> 0 | AF64: =IFERROR(#REF!+AF$7*(Qmax-#REF!),0) -> 0 | AG64: =IFERROR(#REF!+AG$7*(Qmax-#REF!),0) -> 0 | AH64: =IFERROR(#REF!+AH$7*(Qmax-#REF!),0) -> 0 | AI64: =IFERROR(#REF!+AI$7*(Qmax-#REF!),0) -> 0 | AJ64: =IFERROR(#REF!+AJ$7*(Qmax-#REF!),0) -> 0 | AK64: =IFERROR(#REF!+AK$7*(Qmax-#REF!),0) -> 0 | AL64: =IFERROR(#REF!+AL$7*(Qmax-#REF!),0) -> 0 | BC64: EMVI
B65: 53 | C65: FALSE | D65: 0.9994 | E65: 1.978303715 | G65: Ondergrens | H65: =IF(+Superformule!K21<=0,-1000,+Superformule!K21) -> -1000 | I65: =+H65 -> -1000 | V65: =IFERROR((2*$BC$9^Exponent-(2-V64/Qref)^Exponent)^(1/Exponent)*Pref,0) -> 0 | W65: 0 | X65: 0 | Y65: 0 | Z65: 0 | AA65: 0 | AB65: 0 | AC65: 0 | AD65: 0 | AE65: 0 | AF65: 0 | AG65: 0 | AH65: 0 | AI65: 0 | AJ65: 0 | AK65: 0 | AL65: 0 | BC65: =IFERROR('HULP-velden'!H83,0) -> controle welke waarde
B66: 54 | C66: TRUE | D66: 0.9995 | E66: 1.980654026
B67: 55 | C67: TRUE | D67: 0.9995 | E67: 1.982616984 | G67: Lok-lijn | H67: =+H48 -> 100000 | I67: 0 | V67: =+(2-(V64/Qref))^Exponent -> 4 | W67: 4 | X67: 4 | Y67: 4 | Z67: 4 | AA67: 4 | AB67: 4 | AC67: 4 | AD67: 4 | AE67: 4 | AF67: 4 | AG67: 4 | AH67: 4 | AI67: 4 | AJ67: 4 | AK67: 4 | AL67: 4
B68: 56 | C68: TRUE | D68: 0.9996 | E68: 1.984583836 | H68: =Qref/Qmax*100 -> 80 | I68: =(2*Qref)/Qmax*100 -> 160
B69: 57 | C69: TRUE | D69: 0.9996 | E69: 1.986160206 | G69: Invoervariabelen
B70: 58 | C70: TRUE | D70: 0.9996 | E70: 1.987739082 | H70: Minimale waarde voor Qref | J70: =IF(Qmax/2<Qmin,Qmin,IF(ISERROR(Qmax/2),"",Qmax/2)) -> 150 | K70: beschreming Qmax /2
B71: 59 | C71: TRUE | D71: 0.9997 | E71: 1.989320469 | G71: 1 | H71: Referentieprijs | J71: =Pref -> 100000
B72: 60 | C72: TRUE | D72: 0.9997 | E72: 1.990508221 | G72: 2 | H72: Punten Qwensen | J72: =+Superformule!K10 -> 100 | N72: Pref | O72: =Pref -> 100000
B73: 61 | C73: TRUE | D73: 0.9997 | E73: 1.991697391 | G73: 3 | H73: % Qwensen in totaal | J73: =+K73/100 -> 0.6 | K73: 60 | L73: waarde vanuit invoer | N73: Qref | O73: =Qref -> 200
B74: 62 | C74: TRUE | D74: 0.9998 | E74: 1.992887983 | G74: 4 | H74: Kwaliteit Qwensen (bij Pref) | J74: =+L74/100 -> 0.5 | K74: =Qref -> 200 | L74: 50 | N74: exponent | O74: =Exponent -> 2
B75: 63 | C75: TRUE | D75: 0.9998 | E75: 1.993682541 | G75: 5 | H75: Prijs bij Qmax | J75: =IF(K76=0,(L75-1)/100*L76,J76) -> 0.1989578808 | K75: =IF(+Superformule!I16+1>'HULP-velden'!L20,'HULP-velden'!L20,+Superformule!I16+1) -> 1.198957881 | L75: =Maximaal -> 1.25
B76: 64 | C76: TRUE | D76: 0.9998 | E76: 1.994477733 | G76: Hulpwaarden | J76: 0.1989578808 | K76: 1 | L76: 61
B77: 65 | C77: TRUE | D77: =ROUNDDOWN((0.5*A^E77+0.5*(2-B)^E77)^(1/E77),4) -> 0.9998 | E77: 1.99527356 | H77: Qref in procenten van Qwensen | J77: 0.5 | K77: =IF(Qref_wensen<J84,J84,Qref_wensen) -> 0.5
B78: 66 | C78: =IF(AND(D78<=1,D78>=0.9995),TRUE,FALSE) -> TRUE | D78: 0.9999 | E78: 1.996070022 | H78: Pmax in procenten van Pref | J78: 126
B79: 67 | C79: TRUE | D79: 0.9999 | E79: =IF(D78=1,E78,E78/(D78^E78)) -> 1.996468511 | H79: Precentage aandeel wensen in Qtotaal | J79: =100-Percentage_Qeisen -> 99.4
B80: 68 | C80: TRUE | D80: 0.9999 | E80: =IF(D79=1,E79,E79/(D79^E79)) -> 1.996867159 | G80: Bescherming | H80: Precentage aandeel eisen in Qtotaal | J80: =+Superformule!I11 -> 0.6
B81: 69 | C81: TRUE | D81: 0.9999 | E81: 1.997265967 | H81: Bescherming ondergrens | J81: =Qmax/2 -> 125
B82: 70 | C82: TRUE | D82: 0.9999 | E82: 1.997664934 | H82: Qmin | J82: =Qmin -> 150
B83: 71 | C83: TRUE | D83: 0.9999 | E83: 1.99806406 | H83: controle welke waarde | J83: =IF(J81<J82,J82,IF(ISERROR(J81),"",J81)) -> 150
B84: 72 | C84: TRUE | D84: 0.9999 | E84: 1.998463346 | H84: Waarde voor schuifbalk | J84: =ROUNDUP((J83-J82)/Qwensen*100,0) -> 0
B85: 73 | C85: TRUE | D85: 0.9999 | E85: 1.998862791
B86: 74 | C86: TRUE | D86: 0.9999 | E86: 1.999262397 | G86: Middenpunten | H86: Qeisen | J86: =+I44/2 -> 30 | K86: =+PrimairEenheidY -> 10000
B87: 75 | C87: TRUE | D87: 0.9999 | E87: 1.999662161 | H87: Qwensen | J87: =+I44+(I43-I44)/2 -> 80 | K87: =+PrimairEenheidY -> 10000
B88: 76 | C88: TRUE | D88: 1 | E88: 2.000062086 | H88: Qbonus | J88: =(100+H53)/2 -> 130 | K88: =+PrimairEenheidY -> 10000
B89: 77 | C89: TRUE | D89: 1 | E89: 2.000062086
B90: 78 | C90: TRUE | D90: 1 | E90: 2.000062086 | G90: Middenpunten | H90: tbv koppeleing BD | J90: =Qref-Qmin -> 50
B91: 79 | C91: TRUE | D91: 1 | E91: 2.000062086
B92: 80 | C92: TRUE | D92: 1 | E92: 2.000062086 | G92: Label | H92: Gunningswaarde
B93: 81 | C93: TRUE | D93: 1 | E93: 2.000062086 | J93: LAQ | M93: Winnaar = | N93: =VLOOKUP(1,O95:P107,2,FALSE) -> 
B94: 82 | C94: TRUE | D94: 1 | E94: 2.000062086 | G94: Evaluatie | J94: =LAQ -> -1000 | K94: =COUNTIF(K96:K105,"KO") -> 0 | M94: # akkoord = | N94: =COUNT(N96:N107) -> 0
B95: 83 | C95: TRUE | D95: 1 | E95: 2.000062086 | G95: Rangorde | H95: lev. # | I95: Naam leverancier | J95: Qscore | K95: Knock Out | L95: Score | M95: Score | N95: Rangorde onbewerkt | O95: Rangorde | P95: lev. #
B96: 84 | C96: TRUE | D96: 1 | E96: 2.000062086 | G96: =+Evaluatie!J8 ->  | H96: 1 | I96: =+Evaluatie!E8 -> 0 | J96: =+Evaluatie!M8 ->  | K96: =IF(J96<$J$94,"KO","") ->  | L96: =+Evaluatie!I8 ->  | M96: =IF(K96="KO","",L96) ->  | N96: =IF(ISERROR(RANK(M96,$M$96:$M$107)),"",RANK(M96,$M$96:$M$107)) ->  | O96: =IF(N96="","",IF(K96="KO","",$N$94+1-N96)) ->  | P96: =+H96 -> 1
B97: 85 | C97: TRUE | D97: 1 | E97: 2.000062086 | G97: =+Evaluatie!J9 ->  | H97: 2 | I97: =+Evaluatie!E9 -> 0 | J97: =+Evaluatie!M9 ->  | K97: =IF(J97<$J$94,"KO","") ->  | L97: =+Evaluatie!I9 ->  | M97: =IF(K97="KO","",L97) ->  | O97: =IF(N97="","",IF(K97="KO","",$N$94+1-N97)) ->  | P97: 2
B98: 86 | C98: TRUE | D98: 1 | E98: 2.000062086 | G98: =+Evaluatie!J10 ->  | H98: 3 | I98: =+Evaluatie!E10 -> 0 | J98: =+Evaluatie!M10 ->  | L98: =+Evaluatie!I10 ->  | P98: 3
B99: 87 | C99: TRUE | D99: 1 | E99: 2.000062086 | G99: =+Evaluatie!J11 ->  | H99: 4 | I99: =+Evaluatie!E11 -> 0 | J99: =+Evaluatie!M11 ->  | L99: =+Evaluatie!I11 ->  | P99: 4
B100: 88 | C100: TRUE | D100: 1 | E100: 2.000062086 | G100: =+Evaluatie!J12 ->  | H100: 5 | I100: =+Evaluatie!E12 -> 0 | J100: =+Evaluatie!M12 ->  | L100: =+Evaluatie!I12 ->  | P100: 5
B101: 89 | C101: TRUE | D101: 1 | E101: 2.000062086 | G101: =+Evaluatie!J13 ->  | H101: 6 | I101: =+Evaluatie!E13 -> 0 | J101: =+Evaluatie!M13 ->  | L101: =+Evaluatie!I13 ->  | P101: 6
B102: 90 | C102: TRUE | D102: 1 | E102: 2.000062086 | G102: =+Evaluatie!J14 ->  | H102: 7 | I102: =+Evaluatie!E14 -> 0 | J102: =+Evaluatie!M14 ->  | L102: =+Evaluatie!I14 ->  | P102: 7
B103: 91 | C103: TRUE | D103: 1 | E103: 2.000062086 | G103: =+Evaluatie!J15 ->  | H103: 8 | I103: =+Evaluatie!E15 -> 0 | J103: =+Evaluatie!M15 ->  | L103: =+Evaluatie!I15 ->  | P103: 8
B104: 92 | C104: TRUE | D104: 1 | E104: 2.000062086 | G104: =+Evaluatie!J16 ->  | H104: 9 | I104: =+Evaluatie!E16 -> 0 | J104: =+Evaluatie!M16 ->  | L104: =+Evaluatie!I16 ->  | P104: 9
B105: 93 | C105: TRUE | D105: 1 | E105: 2.000062086 | G105: =+Evaluatie!J17 ->  | H105: 10 | I105: =+Evaluatie!E17 -> 0 | J105: =+Evaluatie!M17 ->  | L105: =+Evaluatie!I17 ->  | P105: 10
B106: 94 | C106: TRUE | D106: 1 | E106: 2.000062086 | G106: =+Evaluatie!J18 ->  | H106: 11 | I106: =+Evaluatie!E18 -> 0 | J106: =+Evaluatie!M18 ->  | K106: =IF(J106<$J$94,"KO","") ->  | L106: =+Evaluatie!I18 ->  | P106: 11
B107: 95 | C107: TRUE | D107: 1 | E107: 2.000062086 | G107: =+Evaluatie!J19 ->  | H107: 12 | I107: =+Evaluatie!E19 -> 0 | J107: =+Evaluatie!M19 ->  | L107: =+Evaluatie!I19 ->  | P107: 12
B108: 96 | C108: TRUE | D108: 1 | E108: 2.000062086 | G108: T.b.v. tabblad DATA
B109: 97 | C109: TRUE | D109: 1 | E109: 2.000062086 | G109: Qmax | H109: =Qmax -> 250
B110: 98 | C110: TRUE | D110: 1 | E110: 2.000062086 | G110: Qmin | H110: =Qmin -> 150
B111: 99 | C111: TRUE | D111: 1 | E111: 2.000062086 | G111: Qwensen | H111: =Qwensen -> 100
B112: 100 | C112: TRUE | D112: 1 | E112: 2.000062086 | G112: Exponent | H112: =Exponent -> 2
B113: 101 | C113: TRUE | D113: 1 | E113: 2.000062086 | G113: Pref | H113: =Pref -> 100000
B114: 102 | C114: TRUE | D114: 1 | E114: 2.000062086 | G114: Qref | H114: =Qref -> 200
B115: 103 | C115: TRUE | D115: 1 | E115: 2.000062086 | G115: Qknockout | H115: =LAQ -> -1000
B116: 104 | C116: TRUE | D116: 1 | E116: 2.000062086
B117: 105 | C117: TRUE | D117: 1 | E117: 2.000062086
B118: 106 | C118: TRUE | D118: 1 | E118: 2.000062086
B119: 107 | C119: TRUE | D119: 1 | E119: 2.000062086
B120: 108 | C120: TRUE | D120: 1 | E120: 2.000062086 | G120: Qwenseni | H120: Pi | I120: Totaal
B121: 109 | C121: TRUE | D121: 1 | E121: 2.000062086 | G121: =I121-Qmin -> 65 | H121: =ROUND(Pref-0.05*(Pmax-Pref),-1) -> 99010 | I121: =ROUND(Qref+0.3*(Qmax-Qref),0) -> 215
B122: 110 | C122: TRUE | D122: 1 | E122: 2.000062086 | G122: =I122-Qmin -> 73 | H122: =ROUND(Pref-0.4*(Pmax-Pref),-1) -> 92040 | I122: =ROUND(Qref+0.45*(Qmax-Qref),0) -> 223
B123: 111 | C123: TRUE | D123: 1 | E123: 2.000062086 | G123: =I123-Qmin -> 80 | H123: =ROUND(Pref+0.1*(Pmax-Pref),-1) -> 101990 | I123: =ROUND(Qref+0.6*(Qmax-Qref),0) -> 230
B124: 112 | C124: TRUE | D124: 1 | E124: 2.000062086 | G124: =I124-Qmin -> 85 | H124: =ROUND(Pref-0.4*(Pmax-Pref),-1) -> 92040 | I124: =ROUND(Qref+0.7*(Qmax-Qref),0) -> 235
B125: 113 | C125: TRUE | D125: 1 | E125: 2.000062086 | G125: =I125-Qmin -> 93 | H125: =ROUND(Pref-0*(Pmax-Pref),-1) -> 100000 | I125: =ROUND(Qref+0.85*(Qmax-Qref),0) -> 243
B126: 114 | C126: TRUE | D126: 1 | E126: 2.000062086
B127: 115 | C127: TRUE | D127: 1 | E127: 2.000062086 | I127: LAQ | L127: Winnaar = | M127: =VLOOKUP(1,N129:O134,2,FALSE) -> 4
B128: 116 | C128: TRUE | D128: 1 | E128: 2.000062086 | G128: Info BD | I128: =LAQ -> -1000 | J128: =COUNTIF(K130:K139,"KO") -> 0 | L128: # akkoord = | M128: =COUNT(M130:M134) -> 5
B129: 117 | C129: TRUE | D129: 1 | E129: 2.000062086 | G129: Rangorde | H129: lev. # | I129: Qscore | J129: Knock Out | K129: Score | L129: Score | M129: Rangorde onbewerkt | N129: Rangorde | O129: lev. #
B130: 118 | C130: TRUE | D130: 1 | E130: 2.000062086 | G130: =+N130 -> 5 | H130: 1 | I130: =+'Info BD'!C27+Qmin -> 215 | J130: =IF(I130<$I$128,"KO","") ->  | K130: =+'Info BD'!G27 -> 0.9581030764 | L130: =IF(J130="KO","",K130) -> 0.9581030764 | M130: =IF(ISERROR(RANK(L130,$L$130:$L$134)),"",RANK(L130,$L$130:$L$134)) -> 1 | N130: =IF(J130="KO","",$M$128+1-M130) -> 5 | O130: =+H130 -> 1
B131: 119 | C131: TRUE | D131: 1 | E131: 2.000062086 | G131: =+N131 -> 3 | H131: 2 | I131: =+'Info BD'!C28+Qmin -> 223 | J131: =IF(I131<$I$128,"KO","") ->  | K131: =+'Info BD'!G28 -> 0.9028735127 | L131: =IF(J131="KO","",K131) -> 0.9028735127 | M131: =IF(ISERROR(RANK(L131,$L$130:$L$134)),"",RANK(L131,$L$130:$L$134)) -> 3 | N131: =IF(J131="KO","",$M$128+1-M131) -> 3 | O131: =+H131 -> 2
B132: 120 | C132: TRUE | D132: 1 | E132: 2.000062086 | G132: =+N132 -> 4 | H132: 3 | I132: =+'Info BD'!C29+Qmin -> 230 | J132: =IF(I132<$I$128,"KO","") ->  | K132: =+'Info BD'!G29 -> 0.9388013661 | L132: 0.9388013661 | M132: =IF(ISERROR(RANK(L132,$L$130:$L$134)),"",RANK(L132,$L$130:$L$134)) -> 2 | N132: =IF(J132="KO","",$M$128+1-M132) -> 4 | O132: =+H132 -> 3
B133: 121 | C133: TRUE | D133: 1 | E133: 2.000062086 | G133: =+N133 -> 1 | H133: 4 | I133: =+'Info BD'!C30+Qmin -> 235 | J133: =IF(I133<$I$128,"KO","") ->  | K133: =+'Info BD'!G30 -> 0.8740026201 | L133: 0.8740026201 | M133: =IF(ISERROR(RANK(L133,$L$130:$L$134)),"",RANK(L133,$L$130:$L$134)) -> 5 | N133: =IF(J133="KO","",$M$128+1-M133) -> 1 | O133: =+H133 -> 4
B134: 122 | C134: TRUE | D134: 1 | E134: 2.000062086 | G134: =+N134 -> 2 | H134: 5 | I134: =+'Info BD'!C31+Qmin -> 243 | J134: =IF(I134<$I$128,"KO","") ->  | K134: =+'Info BD'!G31 -> 0.8989507773 | L134: 0.8989507773 | M134: =IF(ISERROR(RANK(L134,$L$130:$L$134)),"",RANK(L134,$L$130:$L$134)) -> 4 | N134: =IF(J134="KO","",$M$128+1-M134) -> 2 | O134: =+H134 -> 5
B135: 123 | C135: TRUE | D135: 1 | E135: 2.000062086 | G135: =MAX(G131:G134) -> 4 | H135: <- max
B136: 124 | C136: TRUE | D136: 1 | E136: 2.000062086
B137: 125 | C137: TRUE | D137: 1 | E137: 2.000062086 | G137: SOM evaluatie
B138: 126 | C138: TRUE | D138: 1 | E138: 2.000062086 | G138: =SUM(Evaluatie!H8:H19) -> 0
B139: 127 | C139: TRUE | D139: 1 | E139: 2.000062086
B140: 128 | C140: TRUE | D140: 1 | E140: 2.000062086
B141: 129 | C141: TRUE | D141: =ROUNDDOWN((0.5*A^E141+0.5*(2-B)^E141)^(1/E141),4) -> 1 | E141: 2.000062086
B142: 130 | C142: =IF(AND(D142<=1,D142>=0.9995),TRUE,FALSE) -> TRUE | D142: 1 | E142: 2.000062086
B143: 131 | C143: TRUE | D143: 1 | E143: 2.000062086
B144: 132 | C144: TRUE | D144: 1 | E144: =IF(D143=1,E143,E143/(D143^E143)) -> 2.000062086
B145: 133 | C145: TRUE | D145: 1 | E145: 2.000062086
B146: 134 | C146: TRUE | D146: 1 | E146: 2.000062086
B147: 135 | C147: TRUE | D147: 1 | E147: 2.000062086
B148: 136 | C148: TRUE | D148: 1 | E148: 2.000062086
B149: 137 | C149: TRUE | D149: 1 | E149: 2.000062086
B150: 138 | C150: TRUE | D150: 1 | E150: 2.000062086
B151: 139 | C151: TRUE | D151: 1 | E151: 2.000062086
B152: 140 | C152: TRUE | D152: 1 | E152: 2.000062086
B153: 141 | C153: TRUE | D153: 1 | E153: 2.000062086
B154: 142 | C154: TRUE | D154: 1 | E154: =IF(D153=1,E153,E153/(D153^E153)) -> 2.000062086
B155: 143 | C155: TRUE | D155: 1 | E155: 2.000062086
B156: 144 | C156: TRUE | D156: 1 | E156: 2.000062086
B157: 145 | C157: TRUE | D157: 1 | E157: 2.000062086
B158: 146 | C158: TRUE | D158: 1 | E158: 2.000062086
B159: 147 | C159: TRUE | D159: 1 | E159: 2.000062086
B160: 148 | C160: TRUE | D160: 1 | E160: 2.000062086
B161: 149 | C161: TRUE | D161: 1 | E161: 2.000062086
B162: 150 | C162: TRUE | D162: 1 | E162: 2.000062086
B163: 151 | C163: TRUE | D163: 1 | E163: 2.000062086
B164: 152 | C164: TRUE | D164: 1 | E164: 2.000062086
B165: 153 | C165: TRUE | D165: 1 | E165: 2.000062086
B166: 154 | C166: TRUE | D166: 1 | E166: 2.000062086
B167: 155 | C167: TRUE | D167: 1 | E167: 2.000062086
B168: 156 | C168: TRUE | D168: 1 | E168: 2.000062086
B169: 157 | C169: TRUE | D169: 1 | E169: 2.000062086
B170: 158 | C170: TRUE | D170: 1 | E170: 2.000062086
B171: 159 | C171: TRUE | D171: 1 | E171: 2.000062086
B172: 160 | C172: TRUE | D172: 1 | E172: 2.000062086
B173: 161 | C173: TRUE | D173: 1 | E173: 2.000062086
B174: 162 | C174: TRUE | D174: 1 | E174: 2.000062086
B175: 163 | C175: TRUE | D175: 1 | E175: 2.000062086
B176: 164 | C176: TRUE | D176: 1 | E176: 2.000062086
B177: 165 | C177: TRUE | D177: 1 | E177: 2.000062086
B178: 166 | C178: TRUE | D178: 1 | E178: 2.000062086
B179: 167 | C179: TRUE | D179: 1 | E179: 2.000062086
B180: 168 | C180: TRUE | D180: 1 | E180: 2.000062086
B181: 169 | C181: TRUE | D181: 1 | E181: 2.000062086
B182: 170 | C182: TRUE | D182: 1 | E182: 2.000062086
B183: 171 | C183: TRUE | D183: 1 | E183: 2.000062086
B184: 172 | C184: TRUE | D184: 1 | E184: 2.000062086
B185: 173 | C185: TRUE | D185: 1 | E185: 2.000062086
B186: 174 | C186: TRUE | D186: 1 | E186: 2.000062086
B187: 175 | C187: TRUE | D187: 1 | E187: 2.000062086
B188: 176 | C188: TRUE | D188: 1 | E188: 2.000062086
B189: 177 | C189: TRUE | D189: 1 | E189: 2.000062086
B190: 178 | C190: TRUE | D190: 1 | E190: 2.000062086
B191: 179 | C191: TRUE | D191: 1 | E191: 2.000062086
B192: 180 | C192: TRUE | D192: 1 | E192: 2.000062086
B193: 181 | C193: TRUE | D193: 1 | E193: 2.000062086
B194: 182 | C194: TRUE | D194: 1 | E194: 2.000062086
B195: 183 | C195: TRUE | D195: 1 | E195: 2.000062086
B196: 184 | C196: TRUE | D196: 1 | E196: 2.000062086
B197: 185 | C197: TRUE | D197: 1 | E197: 2.000062086
B198: 186 | C198: TRUE | D198: 1 | E198: 2.000062086
B199: 187 | C199: TRUE | D199: 1 | E199: 2.000062086
B200: 188 | C200: TRUE | D200: 1 | E200: 2.000062086
B201: 189 | C201: TRUE | D201: 1 | E201: 2.000062086
B202: 190 | C202: TRUE | D202: 1 | E202: 2.000062086
B203: 191 | C203: TRUE | D203: 1 | E203: 2.000062086
B204: 192 | C204: TRUE | D204: 1 | E204: 2.000062086
... 808 more rows

Sheet DATA (hidden)
B2: Hulpdata Grafiek Superformule
B6: Hulpvelden
B7: Uw inschrijving | C7: =+'BPK-Grafiek'!$F$9 -> 0 | D7: =+'BPK-Grafiek'!$F$14 -> 150 | E7: =IFERROR((0.5*($C$7/$G$38)^$F$38+0.5*(2-$D$7/$H$38)^$F$38)^(1/$F$38),0) -> 0.8838834765 | F7: =+D7/G40*100 -> 60
B9: LET OP !!! | C9: Voordat de TAB-bladen "TBV PRIJSMODEL (1)" EN "TBV PRIJSMODEL (2)" gekopieerd worden kan naar het Prijsmodel, moeten eerst onderstaande waarden ( oranje velden ) worden geselecteerd en worden gekopieerd en geplakt worden als WAARDEN (ctrl-C, plakken speciaal "waarden")
B11: EVMI-punten | C11: P | D11: Q | E11: EMVI
B12: Ref | C12: =$G$38 -> 100000 | D12: =$H$38 -> 200 | E12: =IFERROR((0.5*($C$12/$G$38)^$F$38+0.5*(2-$D$12/$H$38)^$F$38)^(1/$F$38),0) -> 1
B13: Ref (boven) | C13: =+'HULP-velden'!$J$23 -> 119895.7881 | D13: =$G$40 -> 250 | E13: =IFERROR((0.5*($C$13/$G$38)^$F$38+0.5*(2-$D$13/$H$38)^$F$38)^(1/$F$38),0) -> 1
B14: Ref (onder) | C14: 0 | D14: ='HULP-velden'!$L$18 -> 117.1572875 | E14: =IFERROR((0.5*(C14/$G$38)^$F$38+0.5*(2-D14/$H$38)^$F$38)^(1/$F$38),0) -> 1
B16: EMVI-lijnen
C17: hulp=Q bij P=0 | D17: ='HULP-velden'!P7 -> 0 | E17: ='HULP-velden'!Q7 -> 0.0125 | F17: ='HULP-velden'!R7 -> 0.025 | G17: ='HULP-velden'!S7 -> 0.05 | H17: ='HULP-velden'!T7 -> 0.1 | I17: ='HULP-velden'!U7 -> 0.15 | J17: ='HULP-velden'!V7 -> 0.2 | K17: ='HULP-velden'!W7 -> 0.25 | L17: ='HULP-velden'!X7 -> 0.3 | M17: ='HULP-velden'!Y7 -> 0.35 | N17: ='HULP-velden'!Z7 -> 0.4 | O17: ='HULP-velden'!AA7 -> 0.45 | P17: ='HULP-velden'!AB7 -> 0.5 | Q17: ='HULP-velden'!AC7 -> 0.55 | R17: ='HULP-velden'!AD7 -> 0.6 | S17: ='HULP-velden'!AE7 -> 0.65 | T17: ='HULP-velden'!AF7 -> 0.7 | U17: ='HULP-velden'!AG7 -> 0.75 | V17: ='HULP-velden'!AH7 -> 0.8 | W17: ='HULP-velden'!AI7 -> 0.85 | X17: ='HULP-velden'!AJ7 -> 0.9 | Y17: ='HULP-velden'!AK7 -> 0.95 | Z17: ='HULP-velden'!AL7 -> 1 | AA17: 0
B18: Q berekend bij P=0 en EMVI=1 | C18: ='HULP-velden'!O8 -> 117.1572875 | D18: ='HULP-velden'!P8 -> 117.1572875 | E18: ='HULP-velden'!Q8 -> 118.8178214 | F18: ='HULP-velden'!R8 -> 120.4783553 | G18: ='HULP-velden'!S8 -> 123.7994231 | H18: ='HULP-velden'!T8 -> 130.4415588 | I18: ='HULP-velden'!U8 -> 137.0836944 | J18: ='HULP-velden'!V8 -> 143.72583 | K18: ='HULP-velden'!W8 -> 150.3679656 | L18: ='HULP-velden'!X8 -> 157.0101013 | M18: ='HULP-velden'!Y8 -> 163.6522369 | N18: ='HULP-velden'!Z8 -> 170.2943725 | O18: ='HULP-velden'!AA8 -> 176.9365081 | P18: ='HULP-velden'!AB8 -> 183.5786438 | Q18: ='HULP-velden'!AC8 -> 190.2207794 | R18: ='HULP-velden'!AD8 -> 196.862915 | S18: ='HULP-velden'!AE8 -> 203.5050506 | T18: ='HULP-velden'!AF8 -> 210.1471863 | U18: ='HULP-velden'!AG8 -> 216.7893219 | V18: ='HULP-velden'!AH8 -> 223.4314575 | W18: ='HULP-velden'!AI8 -> 230.0735931 | X18: ='HULP-velden'!AJ8 -> 236.7157288 | Y18: ='HULP-velden'!AK8 -> 243.3578644 | Z18: ='HULP-velden'!AL8 -> 250 | AA18: EMVI
B19: P berekend uit Q en EMVI=1 | D19: ='HULP-velden'!P9 -> 0 | E19: ='HULP-velden'!Q9 -> 15301.81734 | F19: ='HULP-velden'!R9 -> 21608.15914 | G19: ='HULP-velden'!S9 -> 30468.18565 | H19: ='HULP-velden'!T9 -> 42831.78365 | I19: ='HULP-velden'!U9 -> 52141.67299 | J19: ='HULP-velden'!V9 -> 59840.5168 | K19: ='HULP-velden'!W9 -> 66490.314 | L19: ='HULP-velden'!X9 -> 72380.77976 | M19: ='HULP-velden'!Y9 -> 77684.83583 | N19: ='HULP-velden'!Z9 -> 82515.642 | O19: ='HULP-velden'!AA9 -> 86952.11124 | P19: ='HULP-velden'!AB9 -> 91051.90356 | Q19: ='HULP-velden'!AC9 -> 94858.68252 | R19: ='HULP-velden'!AD9 -> 98406.45901 | S19: ='HULP-velden'!AE9 -> 101722.3364 | T19: ='HULP-velden'!AF9 -> 104828.3229 | U19: ='HULP-velden'!AG9 -> 107742.5722 | V19: ='HULP-velden'!AH9 -> 110480.2582 | W19: ='HULP-velden'!AI9 -> 113054.2085 | X19: ='HULP-velden'!AJ9 -> 115475.3727 | Y19: ='HULP-velden'!AK9 -> 117753.1755 | Z19: ='HULP-velden'!AL9 -> 119895.7881 | AA19: 1
D20: ='HULP-velden'!P10 -> 46.86291501 | E20: ='HULP-velden'!Q10 -> 47.52712857 | F20: ='HULP-velden'!R10 -> 48.19134213 | G20: ='HULP-velden'!S10 -> 49.51976926 | H20: ='HULP-velden'!T10 -> 52.17662351 | I20: ='HULP-velden'!U10 -> 54.83347776 | J20: ='HULP-velden'!V10 -> 57.49033201 | K20: ='HULP-velden'!W10 -> 60.14718626 | L20: ='HULP-velden'!X10 -> 62.80404051 | M20: ='HULP-velden'!Y10 -> 65.46089476 | N20: ='HULP-velden'!Z10 -> 68.11774901 | O20: ='HULP-velden'!AA10 -> 70.77460326 | P20: ='HULP-velden'!AB10 -> 73.43145751 | Q20: ='HULP-velden'!AC10 -> 76.08831175 | R20: ='HULP-velden'!AD10 -> 78.745166 | S20: ='HULP-velden'!AE10 -> 81.40202025 | T20: ='HULP-velden'!AF10 -> 84.0588745 | U20: ='HULP-velden'!AG10 -> 86.71572875 | V20: ='HULP-velden'!AH10 -> 89.372583 | W20: ='HULP-velden'!AI10 -> 92.02943725 | X20: ='HULP-velden'!AJ10 -> 94.6862915 | Y20: ='HULP-velden'!AK10 -> 97.34314575 | Z20: ='HULP-velden'!AL10 -> 100 | AA20: 0
B21: Q berekend bij P=0 en EMVI=0,9 | C21: ='HULP-velden'!O11 -> 145.4415588 | D21: ='HULP-velden'!P11 -> 145.4415588 | E21: ='HULP-velden'!Q11 -> 146.7485393 | F21: ='HULP-velden'!R11 -> 148.0555198 | G21: ='HULP-velden'!S11 -> 150.6694808 | H21: ='HULP-velden'!T11 -> 155.8974029 | I21: ='HULP-velden'!U11 -> 161.125325 | J21: ='HULP-velden'!V11 -> 166.353247 | K21: ='HULP-velden'!W11 -> 171.5811691 | L21: ='HULP-velden'!X11 -> 176.8090911 | M21: ='HULP-velden'!Y11 -> 182.0370132 | N21: ='HULP-velden'!Z11 -> 187.2649353 | O21: ='HULP-velden'!AA11 -> 192.4928573 | P21: ='HULP-velden'!AB11 -> 197.7207794 | Q21: ='HULP-velden'!AC11 -> 202.9487014 | R21: ='HULP-velden'!AD11 -> 208.1766235 | S21: ='HULP-velden'!AE11 -> 213.4045456 | T21: ='HULP-velden'!AF11 -> 218.6324676 | U21: ='HULP-velden'!AG11 -> 223.8603897 | V21: ='HULP-velden'!AH11 -> 229.0883118 | W21: ='HULP-velden'!AI11 -> 234.3162338 | X21: ='HULP-velden'!AJ11 -> 239.5441559 | Y21: ='HULP-velden'!AK11 -> 244.7720779 | Z21: ='HULP-velden'!AL11 -> 250 | AA21: EMVI
B22: P berekend uit Q en EMVI=0,9 | D22: ='HULP-velden'!P12 -> 0 | E22: ='HULP-velden'!Q12 -> 12881.165 | F22: ='HULP-velden'!R12 -> 18193.26042 | G22: ='HULP-velden'!S12 -> 25662.67821 | H22: ='HULP-velden'!T12 -> 36103.74664 | I22: ='HULP-velden'!U12 -> 43985.47949 | J22: ='HULP-velden'!V12 -> 50520.28014 | K22: ='HULP-velden'!W12 -> 56180.15148 | L22: ='HULP-velden'!X12 -> 61208.28825 | M22: ='HULP-velden'!Y12 -> 65749.784 | N22: ='HULP-velden'!Z12 -> 69899.55692 | O22: ='HULP-velden'!AA12 -> 73723.78473 | P22: ='HULP-velden'!AB12 -> 77270.81743 | Q22: ='HULP-velden'!AC12 -> 80577.26996 | R22: ='HULP-velden'!AD12 -> 83671.66819 | S22: ='HULP-velden'!AE12 -> 86576.75263 | T22: ='HULP-velden'!AF12 -> 89310.99905 | U22: ='HULP-velden'!AG12 -> 91889.65894 | V22: ='HULP-velden'!AH12 -> 94325.4934 | W22: ='HULP-velden'!AI12 -> 96629.30407 | X22: ='HULP-velden'!AJ12 -> 98810.32599 | Y22: ='HULP-velden'!AK12 -> 100876.5238 | Z22: ='HULP-velden'!AL12 -> 102834.819 | AA22: 0.9
D23: ='HULP-velden'!P13 -> 58.17662351 | E23: ='HULP-velden'!Q13 -> 58.69941572 | F23: ='HULP-velden'!R13 -> 59.22220792 | G23: ='HULP-velden'!S13 -> 60.26779233 | H23: ='HULP-velden'!T13 -> 62.35896116 | I23: ='HULP-velden'!U13 -> 64.45012998 | J23: ='HULP-velden'!V13 -> 66.54129881 | K23: ='HULP-velden'!W13 -> 68.63246763 | L23: ='HULP-velden'!X13 -> 70.72363646 | M23: ='HULP-velden'!Y13 -> 72.81480528 | N23: ='HULP-velden'!Z13 -> 74.90597411 | O23: ='HULP-velden'!AA13 -> 76.99714293 | P23: ='HULP-velden'!AB13 -> 79.08831175 | Q23: ='HULP-velden'!AC13 -> 81.17948058 | R23: ='HULP-velden'!AD13 -> 83.2706494 | S23: ='HULP-velden'!AE13 -> 85.36181823 | T23: ='HULP-velden'!AF13 -> 87.45298705 | U23: ='HULP-velden'!AG13 -> 89.54415588 | V23: ='HULP-velden'!AH13 -> 91.6353247 | W23: ='HULP-velden'!AI13 -> 93.72649353 | X23: ='HULP-velden'!AJ13 -> 95.81766235 | Y23: ='HULP-velden'!AK13 -> 97.90883118 | Z23: ='HULP-velden'!AL13 -> 100 | AA23: 0
B24: Q berekend bij P=0 en EMVI=0,8 | C24: ='HULP-velden'!O14 -> 173.72583 | D24: ='HULP-velden'!P14 -> 173.72583 | E24: ='HULP-velden'!Q14 -> 174.6792571 | F24: ='HULP-velden'!R14 -> 175.6326843 | G24: ='HULP-velden'!S14 -> 177.5395385 | H24: ='HULP-velden'!T14 -> 181.353247 | I24: ='HULP-velden'!U14 -> 185.1669555 | J24: ='HULP-velden'!V14 -> 188.980664 | K24: ='HULP-velden'!W14 -> 192.7943725 | L24: ='HULP-velden'!X14 -> 196.608081 | M24: ='HULP-velden'!Y14 -> 200.4217895 | N24: ='HULP-velden'!Z14 -> 204.235498 | O24: ='HULP-velden'!AA14 -> 208.0492065 | P24: ='HULP-velden'!AB14 -> 211.862915 | Q24: ='HULP-velden'!AC14 -> 215.6766235 | R24: ='HULP-velden'!AD14 -> 219.490332 | S24: ='HULP-velden'!AE14 -> 223.3040405 | T24: ='HULP-velden'!AF14 -> 227.117749 | U24: ='HULP-velden'!AG14 -> 230.9314575 | V24: ='HULP-velden'!AH14 -> 234.745166 | W24: ='HULP-velden'!AI14 -> 238.5588745 | X24: ='HULP-velden'!AJ14 -> 242.372583 | Y24: ='HULP-velden'!AK14 -> 246.1862915 | Z24: ='HULP-velden'!AL14 -> 250 | AA24: EMVI
B25: P berekend uit Q en EMVI=0,8 | D25: ='HULP-velden'!P15 -> 0 | E25: ='HULP-velden'!Q15 -> 10375.00409 | F25: ='HULP-velden'!R15 -> 14656.97472 | G25: ='HULP-velden'!S15 -> 20684.19129 | H25: ='HULP-velden'!T15 -> 29127.29566 | I25: ='HULP-velden'!U15 -> 35520.28645 | J25: ='HULP-velden'!V15 -> 40837.60473 | K25: ='HULP-velden'!W15 -> 45458.2994 | L25: ='HULP-velden'!X15 -> 49577.53345 | M25: ='HULP-velden'!Y15 -> 53311.67297 | N25: ='HULP-velden'!Z15 -> 56736.80411 | O25: ='HULP-velden'!AA15 -> 59905.95312 | P25: ='HULP-velden'!AB15 -> 62857.85005 | Q25: ='HULP-velden'!AC15 -> 65621.81969 | R25: ='HULP-velden'!AD15 -> 68220.70756 | S25: ='HULP-velden'!AE15 -> 70672.72794 | T25: ='HULP-velden'!AF15 -> 72992.68335 | U25: ='HULP-velden'!AG15 -> 75192.79876 | V25: ='HULP-velden'!AH15 -> 77283.30971 | W25: ='HULP-velden'!AI15 -> 79272.88786 | X25: ='HULP-velden'!AJ15 -> 81168.9556 | Y25: ='HULP-velden'!AK15 -> 82977.92339 | Z25: ='HULP-velden'!AL15 -> 84705.37173 | AA25: 0.8
D26: ='HULP-velden'!P16 -> 69.49033201 | E26: ='HULP-velden'!Q16 -> 69.87170286 | F26: ='HULP-velden'!R16 -> 70.25307371 | G26: ='HULP-velden'!S16 -> 71.01581541 | H26: ='HULP-velden'!T16 -> 72.54129881 | I26: ='HULP-velden'!U16 -> 74.06678221 | J26: ='HULP-velden'!V16 -> 75.59226561 | K26: ='HULP-velden'!W16 -> 77.11774901 | L26: ='HULP-velden'!X16 -> 78.64323241 | M26: ='HULP-velden'!Y16 -> 80.16871581 | N26: ='HULP-velden'!Z16 -> 81.6941992 | O26: ='HULP-velden'!AA16 -> 83.2196826 | P26: ='HULP-velden'!AB16 -> 84.745166 | Q26: ='HULP-velden'!AC16 -> 86.2706494 | R26: ='HULP-velden'!AD16 -> 87.7961328 | S26: ='HULP-velden'!AE16 -> 89.3216162 | T26: ='HULP-velden'!AF16 -> 90.8470996 | U26: ='HULP-velden'!AG16 -> 92.372583 | V26: ='HULP-velden'!AH16 -> 93.8980664 | W26: ='HULP-velden'!AI16 -> 95.4235498 | X26: ='HULP-velden'!AJ16 -> 96.9490332 | Y26: ='HULP-velden'!AK16 -> 98.4745166 | Z26: ='HULP-velden'!AL16 -> 100
B27: Q berekend bij P=0 en EMVI=0,7 | C27: ='HULP-velden'!O17 -> 202.0101013 | D27: ='HULP-velden'!P17 -> 202.0101013 | E27: ='HULP-velden'!Q17 -> 202.609975 | F27: ='HULP-velden'!R17 -> 203.2098487 | G27: ='HULP-velden'!S17 -> 204.4095962 | H27: ='HULP-velden'!T17 -> 206.8090911 | I27: ='HULP-velden'!U17 -> 209.2085861 | J27: ='HULP-velden'!V17 -> 211.608081 | K27: ='HULP-velden'!W17 -> 214.007576 | L27: ='HULP-velden'!X17 -> 216.4070709 | M27: ='HULP-velden'!Y17 -> 218.8065658 | N27: ='HULP-velden'!Z17 -> 221.2060608 | O27: ='HULP-velden'!AA17 -> 223.6055557 | P27: ='HULP-velden'!AB17 -> 226.0050506 | Q27: ='HULP-velden'!AC17 -> 228.4045456 | R27: ='HULP-velden'!AD17 -> 230.8040405 | S27: ='HULP-velden'!AE17 -> 233.2035354 | T27: ='HULP-velden'!AF17 -> 235.6030304 | U27: ='HULP-velden'!AG17 -> 238.0025253 | V27: ='HULP-velden'!AH17 -> 240.4020203 | W27: ='HULP-velden'!AI17 -> 242.8015152 | X27: ='HULP-velden'!AJ17 -> 245.2010101 | Y27: ='HULP-velden'!AK17 -> 247.6005051 | Z27: ='HULP-velden'!AL17 -> 250 | AA27: EMVI
B28: P berekend uit Q en EMVI=0,7 | D28: ='HULP-velden'!P18 -> 0 | E28: ='HULP-velden'!Q18 -> 7700.29271 | F28: ='HULP-velden'!R18 -> 10881.59416 | G28: ='HULP-velden'!S18 -> 15365.4966 | H28: ='HULP-velden'!T18 -> 21663.75276 | I28: ='HULP-velden'!U18 -> 26451.0698 | J28: ='HULP-velden'!V18 -> 30448.66525 | K28: ='HULP-velden'!W18 -> 33936.77281 | L28: ='HULP-velden'!X18 -> 37059.53447 | M28: ='HULP-velden'!Y18 -> 39902.81761 | N28: ='HULP-velden'!Z18 -> 42522.72125 | O28: ='HULP-velden'!AA18 -> 44958.31408 | P28: ='HULP-velden'!AB18 -> 47238.11384 | Q28: ='HULP-velden'!AC18 -> 49383.70181 | R28: ='HULP-velden'!AD18 -> 51411.88406 | S28: ='HULP-velden'!AE18 -> 53336.05584 | T28: ='HULP-velden'!AF18 -> 55167.10156 | U28: ='HULP-velden'!AG18 -> 56914.01013 | V28: ='HULP-velden'!AH18 -> 58584.30861 | W28: ='HULP-velden'!AI18 -> 60184.37582 | X28: ='HULP-velden'!AJ18 -> 61719.6742 | Y28: ='HULP-velden'!AK18 -> 63194.92453 | Z28: ='HULP-velden'!AL18 -> 64614.23992 | AA28: 0.7
D29: ='HULP-velden'!P19 -> 80.80404051 | E29: ='HULP-velden'!Q19 -> 81.04399 | F29: ='HULP-velden'!R19 -> 81.28393949 | G29: ='HULP-velden'!S19 -> 81.76383848 | H29: ='HULP-velden'!T19 -> 82.72363646 | I29: ='HULP-velden'!U19 -> 83.68343443 | J29: ='HULP-velden'!V19 -> 84.64323241 | K29: ='HULP-velden'!W19 -> 85.60303038 | L29: ='HULP-velden'!X19 -> 86.56282835 | M29: ='HULP-velden'!Y19 -> 87.52262633 | N29: ='HULP-velden'!Z19 -> 88.4824243 | O29: ='HULP-velden'!AA19 -> 89.44222228 | P29: ='HULP-velden'!AB19 -> 90.40202025 | Q29: ='HULP-velden'!AC19 -> 91.36181823 | R29: ='HULP-velden'!AD19 -> 92.3216162 | S29: ='HULP-velden'!AE19 -> 93.28141418 | T29: ='HULP-velden'!AF19 -> 94.24121215 | U29: ='HULP-velden'!AG19 -> 95.20101013 | V29: ='HULP-velden'!AH19 -> 96.1608081 | W29: ='HULP-velden'!AI19 -> 97.12060608 | X29: ='HULP-velden'!AJ19 -> 98.08040405 | Y29: ='HULP-velden'!AK19 -> 99.04020203 | Z29: ='HULP-velden'!AL19 -> 100 | AA29: 0
B30: Q berekend bij P=0 en EMVI=0,6 | C30: ='HULP-velden'!O20 -> 230.2943725 | D30: ='HULP-velden'!P20 -> 230.2943725 | E30: ='HULP-velden'!Q20 -> 230.5406929 | F30: ='HULP-velden'!R20 -> 230.7870132 | G30: ='HULP-velden'!S20 -> 231.2796539 | H30: ='HULP-velden'!T20 -> 232.2649353 | I30: ='HULP-velden'!U20 -> 233.2502166 | J30: ='HULP-velden'!V20 -> 234.235498 | K30: ='HULP-velden'!W20 -> 235.2207794 | L30: ='HULP-velden'!X20 -> 236.2060608 | M30: ='HULP-velden'!Y20 -> 237.1913421 | N30: ='HULP-velden'!Z20 -> 238.1766235 | O30: ='HULP-velden'!AA20 -> 239.1619049 | P30: ='HULP-velden'!AB20 -> 240.1471863 | Q30: ='HULP-velden'!AC20 -> 241.1324676 | R30: ='HULP-velden'!AD20 -> 242.117749 | S30: ='HULP-velden'!AE20 -> 243.1030304 | T30: ='HULP-velden'!AF20 -> 244.0883118 | U30: ='HULP-velden'!AG20 -> 245.0735931 | V30: ='HULP-velden'!AH20 -> 246.0588745 | W30: ='HULP-velden'!AI20 -> 247.0441559 | X30: ='HULP-velden'!AJ20 -> 248.0294373 | Y30: ='HULP-velden'!AK20 -> 249.0147186 | Z30: ='HULP-velden'!AL20 -> 250 | AA30: EMVI
B31: P berekend uit Q en EMVI=0,6 | D31: ='HULP-velden'!P21 -> 0 | E31: ='HULP-velden'!Q21 -> 4570.099102 | F31: ='HULP-velden'!R21 -> 6460.748777 | G31: ='HULP-velden'!S21 -> 9130.235599 | H31: ='HULP-velden'!T21 -> 12893.29339 | I31: ='HULP-velden'!U21 -> 15767.92431 | J31: ='HULP-velden'!V21 -> 18180.55198 | K31: ='HULP-velden'!W21 -> 20296.6035 | L31: ='HULP-velden'!X21 -> 22201.04428 | M31: ='HULP-velden'!Y21 -> 23944.41962 | N31: ='HULP-velden'!Z21 -> 25559.70863 | O31: ='HULP-velden'!AA21 -> 27069.8502 | P31: ='HULP-velden'!AB21 -> 28491.56866 | Q31: ='HULP-velden'!AC21 -> 29837.50643 | R31: ='HULP-velden'!AD21 -> 31117.49838 | S31: ='HULP-velden'!AE21 -> 32339.37586 | T31: ='HULP-velden'!AF21 -> 33509.49667 | U31: ='HULP-velden'!AG21 -> 34633.10719 | V31: ='HULP-velden'!AH21 -> 35714.59744 | W31: ='HULP-velden'!AI21 -> 36757.68542 | X31: ='HULP-velden'!AJ21 -> 37765.55328 | Y31: ='HULP-velden'!AK21 -> 38740.94994 | Z31: ='HULP-velden'!AL21 -> 39686.26967 | AA31: 0.6
D32: ='HULP-velden'!P22 -> 92.11774901 | E32: ='HULP-velden'!Q22 -> 92.21627714 | F32: ='HULP-velden'!R22 -> 92.31480528 | G32: ='HULP-velden'!S22 -> 92.51186156 | H32: ='HULP-velden'!T22 -> 92.90597411 | I32: ='HULP-velden'!U22 -> 93.30008666 | J32: ='HULP-velden'!V22 -> 93.6941992 | K32: ='HULP-velden'!W22 -> 94.08831175 | L32: ='HULP-velden'!X22 -> 94.4824243 | M32: ='HULP-velden'!Y22 -> 94.87653685 | N32: ='HULP-velden'!Z22 -> 95.2706494 | O32: ='HULP-velden'!AA22 -> 95.66476195 | P32: ='HULP-velden'!AB22 -> 96.0588745 | Q32: ='HULP-velden'!AC22 -> 96.45298705 | R32: ='HULP-velden'!AD22 -> 96.8470996 | S32: ='HULP-velden'!AE22 -> 97.24121215 | T32: ='HULP-velden'!AF22 -> 97.6353247 | U32: ='HULP-velden'!AG22 -> 98.02943725 | V32: ='HULP-velden'!AH22 -> 98.4235498 | W32: ='HULP-velden'!AI22 -> 98.81766235 | X32: ='HULP-velden'!AJ22 -> 99.2117749 | Y32: ='HULP-velden'!AK22 -> 99.60588745 | Z32: ='HULP-velden'!AL22 -> 100
B33: Q berekend bij P=0 en EMVI=1,1 | C33: ='HULP-velden'!O23 -> 88.87301628 | D33: ='HULP-velden'!P23 -> 88.87301628 | E33: ='HULP-velden'!Q23 -> 90.88710357 | F33: ='HULP-velden'!R23 -> 92.90119087 | G33: ='HULP-velden'!S23 -> 96.92936546 | H33: ='HULP-velden'!T23 -> 104.9857147 | I33: ='HULP-velden'!U23 -> 113.0420638 | J33: ='HULP-velden'!V23 -> 121.098413 | K33: ='HULP-velden'!W23 -> 129.1547622 | L33: ='HULP-velden'!X23 -> 137.2111114 | M33: ='HULP-velden'!Y23 -> 145.2674606 | N33: ='HULP-velden'!Z23 -> 153.3238098 | O33: ='HULP-velden'!AA23 -> 161.380159 | P33: ='HULP-velden'!AB23 -> 169.4365081 | Q33: ='HULP-velden'!AC23 -> 177.4928573 | R33: ='HULP-velden'!AD23 -> 185.5492065 | S33: ='HULP-velden'!AE23 -> 193.6055557 | T33: ='HULP-velden'!AF23 -> 201.6619049 | U33: ='HULP-velden'!AG23 -> 209.7182541 | V33: ='HULP-velden'!AH23 -> 217.7746033 | W33: ='HULP-velden'!AI23 -> 225.8309524 | X33: ='HULP-velden'!AJ23 -> 233.8873016 | Y33: ='HULP-velden'!AK23 -> 241.9436508 | Z33: ='HULP-velden'!AL23 -> 250 | AA33: EMVI
B34: P berekend uit Q en EMVI=1,1 | D34: ='HULP-velden'!P24 -> 0 | E34: ='HULP-velden'!Q24 -> 17672.13388 | F34: ='HULP-velden'!R24 -> 24951.56023 | G34: ='HULP-velden'!S24 -> 35171.68777 | H34: ='HULP-velden'!T24 -> 49412.98271 | I34: ='HULP-velden'!U24 -> 60114.77121 | J34: ='HULP-velden'!V24 -> 68945.45812 | K34: ='HULP-velden'!W24 -> 76555.30218 | L34: ='HULP-velden'!X24 -> 83279.64941 | M34: ='HULP-velden'!Y24 -> 89318.71775 | N34: ='HULP-velden'!Z24 -> 94803.55633 | O34: ='HULP-velden'!AA24 -> 99825.56218 | P34: ='HULP-velden'!AB24 -> 104451.5153 | Q34: ='HULP-velden'!AC24 -> 108731.9772 | R34: ='HULP-velden'!AD24 -> 112706.3188 | S34: ='HULP-velden'!AE24 -> 116405.8991 | T34: ='HULP-velden'!AF24 -> 119856.1638 | U34: ='HULP-velden'!AG24 -> 123078.0821 | V34: ='HULP-velden'!AH24 -> 126089.1597 | W34: ='HULP-velden'!AI24 -> 128904.1726 | X34: ='HULP-velden'!AJ24 -> 131535.7094 | Y34: ='HULP-velden'!AK24 -> 133994.5806 | Z34: ='HULP-velden'!AL24 -> 136290.1317 | AA34: 1.1
D35: ='HULP-velden'!P25 -> 35.54920651 | E35: ='HULP-velden'!Q25 -> 36.35484143 | F35: ='HULP-velden'!R25 -> 37.16047635 | G35: ='HULP-velden'!S25 -> 38.77174619 | H35: ='HULP-velden'!T25 -> 41.99428586 | I35: ='HULP-velden'!U25 -> 45.21682553 | J35: ='HULP-velden'!V25 -> 48.43936521 | K35: ='HULP-velden'!W25 -> 51.66190488 | L35: ='HULP-velden'!X25 -> 54.88444456 | M35: ='HULP-velden'!Y25 -> 58.10698423 | N35: ='HULP-velden'!Z25 -> 61.32952391 | O35: ='HULP-velden'!AA25 -> 64.55206358 | P35: ='HULP-velden'!AB25 -> 67.77460326 | Q35: ='HULP-velden'!AC25 -> 70.99714293 | R35: ='HULP-velden'!AD25 -> 74.2196826 | S35: ='HULP-velden'!AE25 -> 77.44222228 | T35: ='HULP-velden'!AF25 -> 80.66476195 | U35: ='HULP-velden'!AG25 -> 83.88730163 | V35: ='HULP-velden'!AH25 -> 87.1098413 | W35: ='HULP-velden'!AI25 -> 90.33238098 | X35: ='HULP-velden'!AJ25 -> 93.55492065 | Y35: ='HULP-velden'!AK25 -> 96.77746033 | Z35: ='HULP-velden'!AL25 -> 100 | AA35: 0
B37: Hulpvelden t.b.v grafiek | F37: Exponent | G37: Pref | H37: Qref
B38: Referentie | C38: =+'HULP-velden'!H54 -> 100000 | D38: =+'HULP-velden'!I54 -> 80 | F38: =+'HULP-velden'!H112 -> 2 | G38: =+'HULP-velden'!H113 -> 100000 | H38: =+'HULP-velden'!H114 -> 200
B39: Referentie (Qmax) | C39: =+'HULP-velden'!H55 -> 119895.7881 | D39: =+'HULP-velden'!I55 -> 100
B40: Qmax | C40: =+'HULP-velden'!H43 -> 100 | D40: =+'HULP-velden'!I43 -> 100 | F40: Qmax | G40: =+'HULP-velden'!H109 -> 250
B41: Qmin | C41: =+'HULP-velden'!H44 -> 60 | D41: =+'HULP-velden'!I44 -> 60 | F41: Qmin | G41: =+'HULP-velden'!H110 -> 150
B42: Qref | C42: =+'HULP-velden'!H45 -> 80 | D42: =+'HULP-velden'!I45 -> 80 | F42: Qwensen | G42: =+G40-G41 -> 100
B43: P | C43: =+'HULP-velden'!H47 -> 0 | D43: =+'HULP-velden'!I47 -> 200000 | F43: LAQ | G43: =+'HULP-velden'!H57 -> -10 | H43: =+G43 -> -10 | I43: genormaliseerd
B44: Bonus (extra) | C44: =+'HULP-velden'!H53 -> 160 | D44: =+'HULP-velden'!I53 -> 160 | F44: LAQ (norm) | G44: =+'HULP-velden'!H58 -> -4 | H44: =+G44 -> -4
B45: Qeisen | C45: =+'HULP-velden'!J86 -> 30 | D45: =+'HULP-velden'!K86 -> 10000 | F45: Uw Inschrijving | G45: =+'BPK-Grafiek'!$F$14/G40*100 -> 60 | H45: =+'BPK-Grafiek'!$F$9 -> 0
B46: Qwensen | C46: =+'HULP-velden'!J87 -> 80 | D46: =+'HULP-velden'!K87 -> 10000 | F46: Kenmerk | G46: =Superformule!G7 -> 0
B47: Qbonus | C47: =+'HULP-velden'!J88 -> 130 | D47: =+'HULP-velden'!K88 -> 10000 | F47: Naam | G47: =Superformule!G6 -> 0

Sheet HULP-data (hidden)
B2: Hulpdata Grafiek Superformule
B6: Hulpvelden
B7: Uw inschrijving | C7: =+'BPK-Grafiek'!$F$9 -> 0 | D7: =+'BPK-Grafiek'!$F$14 -> 150 | E7: =IFERROR((0.5*($C$7/$G$38)^$F$38+0.5*(2-$D$7/$H$38)^$F$38)^(1/$F$38),0) -> 0.8838834765 | F7: =+D7/G40*100 -> 60
B9: LET OP !!! | C9: Voordat de TAB-bladen "TBV PRIJSMODEL (1)" EN "TBV PRIJSMODEL (2)" gekopieerd worden kan naar het Prijsmodel, moeten eerst onderstaande waarden ( oranje velden ) worden geselecteerd en worden gekopieerd en geplakt worden als WAARDEN (ctrl-C, plakken speciaal "waarden")
B11: EVMI-punten | C11: P | D11: Q | E11: EMVI
B12: Ref | C12: =$G$38 -> 100000 | D12: =$H$38 -> 200 | E12: =IFERROR((0.5*($C$12/$G$38)^$F$38+0.5*(2-$D$12/$H$38)^$F$38)^(1/$F$38),0) -> 1
B13: Ref (boven) | C13: =+'HULP-velden'!$J$23 -> 119895.7881 | D13: =$G$40 -> 250 | E13: =IFERROR((0.5*($C$13/$G$38)^$F$38+0.5*(2-$D$13/$H$38)^$F$38)^(1/$F$38),0) -> 1
B14: Ref (onder) | C14: 0 | D14: ='HULP-velden'!$L$18 -> 117.1572875 | E14: =IFERROR((0.5*(C14/$G$38)^$F$38+0.5*(2-D14/$H$38)^$F$38)^(1/$F$38),0) -> 1
B16: EMVI-lijnen
C17: hulp=Q bij P=0 | D17: ='HULP-velden'!P7 -> 0 | E17: ='HULP-velden'!Q7 -> 0.0125 | F17: ='HULP-velden'!R7 -> 0.025 | G17: ='HULP-velden'!S7 -> 0.05 | H17: ='HULP-velden'!T7 -> 0.1 | I17: ='HULP-velden'!U7 -> 0.15 | J17: ='HULP-velden'!V7 -> 0.2 | K17: ='HULP-velden'!W7 -> 0.25 | L17: ='HULP-velden'!X7 -> 0.3 | M17: ='HULP-velden'!Y7 -> 0.35 | N17: ='HULP-velden'!Z7 -> 0.4 | O17: ='HULP-velden'!AA7 -> 0.45 | P17: ='HULP-velden'!AB7 -> 0.5 | Q17: ='HULP-velden'!AC7 -> 0.55 | R17: ='HULP-velden'!AD7 -> 0.6 | S17: ='HULP-velden'!AE7 -> 0.65 | T17: ='HULP-velden'!AF7 -> 0.7 | U17: ='HULP-velden'!AG7 -> 0.75 | V17: ='HULP-velden'!AH7 -> 0.8 | W17: ='HULP-velden'!AI7 -> 0.85 | X17: ='HULP-velden'!AJ7 -> 0.9 | Y17: ='HULP-velden'!AK7 -> 0.95 | Z17: ='HULP-velden'!AL7 -> 1 | AA17: 0
B18: Q berekend bij P=0 en EMVI=1 | C18: ='HULP-velden'!O8 -> 117.1572875 | D18: ='HULP-velden'!P8 -> 117.1572875 | E18: ='HULP-velden'!Q8 -> 118.8178214 | F18: ='HULP-velden'!R8 -> 120.4783553 | G18: ='HULP-velden'!S8 -> 123.7994231 | H18: ='HULP-velden'!T8 -> 130.4415588 | I18: ='HULP-velden'!U8 -> 137.0836944 | J18: ='HULP-velden'!V8 -> 143.72583 | K18: ='HULP-velden'!W8 -> 150.3679656 | L18: ='HULP-velden'!X8 -> 157.0101013 | M18: ='HULP-velden'!Y8 -> 163.6522369 | N18: ='HULP-velden'!Z8 -> 170.2943725 | O18: ='HULP-velden'!AA8 -> 176.9365081 | P18: ='HULP-velden'!AB8 -> 183.5786438 | Q18: ='HULP-velden'!AC8 -> 190.2207794 | R18: ='HULP-velden'!AD8 -> 196.862915 | S18: ='HULP-velden'!AE8 -> 203.5050506 | T18: ='HULP-velden'!AF8 -> 210.1471863 | U18: ='HULP-velden'!AG8 -> 216.7893219 | V18: ='HULP-velden'!AH8 -> 223.4314575 | W18: ='HULP-velden'!AI8 -> 230.0735931 | X18: ='HULP-velden'!AJ8 -> 236.7157288 | Y18: ='HULP-velden'!AK8 -> 243.3578644 | Z18: ='HULP-velden'!AL8 -> 250 | AA18: EMVI
B19: P berekend uit Q en EMVI=1 | D19: ='HULP-velden'!P9 -> 0 | E19: ='HULP-velden'!Q9 -> 15301.81734 | F19: ='HULP-velden'!R9 -> 21608.15914 | G19: ='HULP-velden'!S9 -> 30468.18565 | H19: ='HULP-velden'!T9 -> 42831.78365 | I19: ='HULP-velden'!U9 -> 52141.67299 | J19: ='HULP-velden'!V9 -> 59840.5168 | K19: ='HULP-velden'!W9 -> 66490.314 | L19: ='HULP-velden'!X9 -> 72380.77976 | M19: ='HULP-velden'!Y9 -> 77684.83583 | N19: ='HULP-velden'!Z9 -> 82515.642 | O19: ='HULP-velden'!AA9 -> 86952.11124 | P19: ='HULP-velden'!AB9 -> 91051.90356 | Q19: ='HULP-velden'!AC9 -> 94858.68252 | R19: ='HULP-velden'!AD9 -> 98406.45901 | S19: ='HULP-velden'!AE9 -> 101722.3364 | T19: ='HULP-velden'!AF9 -> 104828.3229 | U19: ='HULP-velden'!AG9 -> 107742.5722 | V19: ='HULP-velden'!AH9 -> 110480.2582 | W19: ='HULP-velden'!AI9 -> 113054.2085 | X19: ='HULP-velden'!AJ9 -> 115475.3727 | Y19: ='HULP-velden'!AK9 -> 117753.1755 | Z19: ='HULP-velden'!AL9 -> 119895.7881 | AA19: 1
D20: ='HULP-velden'!P10 -> 46.86291501 | E20: ='HULP-velden'!Q10 -> 47.52712857 | F20: ='HULP-velden'!R10 -> 48.19134213 | G20: ='HULP-velden'!S10 -> 49.51976926 | H20: ='HULP-velden'!T10 -> 52.17662351 | I20: ='HULP-velden'!U10 -> 54.83347776 | J20: ='HULP-velden'!V10 -> 57.49033201 | K20: ='HULP-velden'!W10 -> 60.14718626 | L20: ='HULP-velden'!X10 -> 62.80404051 | M20: ='HULP-velden'!Y10 -> 65.46089476 | N20: ='HULP-velden'!Z10 -> 68.11774901 | O20: ='HULP-velden'!AA10 -> 70.77460326 | P20: ='HULP-velden'!AB10 -> 73.43145751 | Q20: ='HULP-velden'!AC10 -> 76.08831175 | R20: ='HULP-velden'!AD10 -> 78.745166 | S20: ='HULP-velden'!AE10 -> 81.40202025 | T20: ='HULP-velden'!AF10 -> 84.0588745 | U20: ='HULP-velden'!AG10 -> 86.71572875 | V20: ='HULP-velden'!AH10 -> 89.372583 | W20: ='HULP-velden'!AI10 -> 92.02943725 | X20: ='HULP-velden'!AJ10 -> 94.6862915 | Y20: ='HULP-velden'!AK10 -> 97.34314575 | Z20: ='HULP-velden'!AL10 -> 100 | AA20: 0
B21: Q berekend bij P=0 en EMVI=0,9 | C21: ='HULP-velden'!O11 -> 145.4415588 | D21: ='HULP-velden'!P11 -> 145.4415588 | E21: ='HULP-velden'!Q11 -> 146.7485393 | F21: ='HULP-velden'!R11 -> 148.0555198 | G21: ='HULP-velden'!S11 -> 150.6694808 | H21: ='HULP-velden'!T11 -> 155.8974029 | I21: ='HULP-velden'!U11 -> 161.125325 | J21: ='HULP-velden'!V11 -> 166.353247 | K21: ='HULP-velden'!W11 -> 171.5811691 | L21: ='HULP-velden'!X11 -> 176.8090911 | M21: ='HULP-velden'!Y11 -> 182.0370132 | N21: ='HULP-velden'!Z11 -> 187.2649353 | O21: ='HULP-velden'!AA11 -> 192.4928573 | P21: ='HULP-velden'!AB11 -> 197.7207794 | Q21: ='HULP-velden'!AC11 -> 202.9487014 | R21: ='HULP-velden'!AD11 -> 208.1766235 | S21: ='HULP-velden'!AE11 -> 213.4045456 | T21: ='HULP-velden'!AF11 -> 218.6324676 | U21: ='HULP-velden'!AG11 -> 223.8603897 | V21: ='HULP-velden'!AH11 -> 229.0883118 | W21: ='HULP-velden'!AI11 -> 234.3162338 | X21: ='HULP-velden'!AJ11 -> 239.5441559 | Y21: ='HULP-velden'!AK11 -> 244.7720779 | Z21: ='HULP-velden'!AL11 -> 250 | AA21: EMVI
B22: P berekend uit Q en EMVI=0,9 | D22: ='HULP-velden'!P12 -> 0 | E22: ='HULP-velden'!Q12 -> 12881.165 | F22: ='HULP-velden'!R12 -> 18193.26042 | G22: ='HULP-velden'!S12 -> 25662.67821 | H22: ='HULP-velden'!T12 -> 36103.74664 | I22: ='HULP-velden'!U12 -> 43985.47949 | J22: ='HULP-velden'!V12 -> 50520.28014 | K22: ='HULP-velden'!W12 -> 56180.15148 | L22: ='HULP-velden'!X12 -> 61208.28825 | M22: ='HULP-velden'!Y12 -> 65749.784 | N22: ='HULP-velden'!Z12 -> 69899.55692 | O22: ='HULP-velden'!AA12 -> 73723.78473 | P22: ='HULP-velden'!AB12 -> 77270.81743 | Q22: ='HULP-velden'!AC12 -> 80577.26996 | R22: ='HULP-velden'!AD12 -> 83671.66819 | S22: ='HULP-velden'!AE12 -> 86576.75263 | T22: ='HULP-velden'!AF12 -> 89310.99905 | U22: ='HULP-velden'!AG12 -> 91889.65894 | V22: ='HULP-velden'!AH12 -> 94325.4934 | W22: ='HULP-velden'!AI12 -> 96629.30407 | X22: ='HULP-velden'!AJ12 -> 98810.32599 | Y22: ='HULP-velden'!AK12 -> 100876.5238 | Z22: ='HULP-velden'!AL12 -> 102834.819 | AA22: 0.9
D23: ='HULP-velden'!P13 -> 58.17662351 | E23: ='HULP-velden'!Q13 -> 58.69941572 | F23: ='HULP-velden'!R13 -> 59.22220792 | G23: ='HULP-velden'!S13 -> 60.26779233 | H23: ='HULP-velden'!T13 -> 62.35896116 | I23: ='HULP-velden'!U13 -> 64.45012998 | J23: ='HULP-velden'!V13 -> 66.54129881 | K23: ='HULP-velden'!W13 -> 68.63246763 | L23: ='HULP-velden'!X13 -> 70.72363646 | M23: ='HULP-velden'!Y13 -> 72.81480528 | N23: ='HULP-velden'!Z13 -> 74.90597411 | O23: ='HULP-velden'!AA13 -> 76.99714293 | P23: ='HULP-velden'!AB13 -> 79.08831175 | Q23: ='HULP-velden'!AC13 -> 81.17948058 | R23: ='HULP-velden'!AD13 -> 83.2706494 | S23: ='HULP-velden'!AE13 -> 85.36181823 | T23: ='HULP-velden'!AF13 -> 87.45298705 | U23: ='HULP-velden'!AG13 -> 89.54415588 | V23: ='HULP-velden'!AH13 -> 91.6353247 | W23: ='HULP-velden'!AI13 -> 93.72649353 | X23: ='HULP-velden'!AJ13 -> 95.81766235 | Y23: ='HULP-velden'!AK13 -> 97.90883118 | Z23: ='HULP-velden'!AL13 -> 100 | AA23: 0
B24: Q berekend bij P=0 en EMVI=0,8 | C24: ='HULP-velden'!O14 -> 173.72583 | D24: ='HULP-velden'!P14 -> 173.72583 | E24: ='HULP-velden'!Q14 -> 174.6792571 | F24: ='HULP-velden'!R14 -> 175.6326843 | G24: ='HULP-velden'!S14 -> 177.5395385 | H24: ='HULP-velden'!T14 -> 181.353247 | I24: ='HULP-velden'!U14 -> 185.1669555 | J24: ='HULP-velden'!V14 -> 188.980664 | K24: ='HULP-velden'!W14 -> 192.7943725 | L24: ='HULP-velden'!X14 -> 196.608081 | M24: ='HULP-velden'!Y14 -> 200.4217895 | N24: ='HULP-velden'!Z14 -> 204.235498 | O24: ='HULP-velden'!AA14 -> 208.0492065 | P24: ='HULP-velden'!AB14 -> 211.862915 | Q24: ='HULP-velden'!AC14 -> 215.6766235 | R24: ='HULP-velden'!AD14 -> 219.490332 | S24: ='HULP-velden'!AE14 -> 223.3040405 | T24: ='HULP-velden'!AF14 -> 227.117749 | U24: ='HULP-velden'!AG14 -> 230.9314575 | V24: ='HULP-velden'!AH14 -> 234.745166 | W24: ='HULP-velden'!AI14 -> 238.5588745 | X24: ='HULP-velden'!AJ14 -> 242.372583 | Y24: ='HULP-velden'!AK14 -> 246.1862915 | Z24: ='HULP-velden'!AL14 -> 250 | AA24: EMVI
B25: P berekend uit Q en EMVI=0,8 | D25: ='HULP-velden'!P15 -> 0 | E25: ='HULP-velden'!Q15 -> 10375.00409 | F25: ='HULP-velden'!R15 -> 14656.97472 | G25: ='HULP-velden'!S15 -> 20684.19129 | H25: ='HULP-velden'!T15 -> 29127.29566 | I25: ='HULP-velden'!U15 -> 35520.28645 | J25: ='HULP-velden'!V15 -> 40837.60473 | K25: ='HULP-velden'!W15 -> 45458.2994 | L25: ='HULP-velden'!X15 -> 49577.53345 | M25: ='HULP-velden'!Y15 -> 53311.67297 | N25: ='HULP-velden'!Z15 -> 56736.80411 | O25: ='HULP-velden'!AA15 -> 59905.95312 | P25: ='HULP-velden'!AB15 -> 62857.85005 | Q25: ='HULP-velden'!AC15 -> 65621.81969 | R25: ='HULP-velden'!AD15 -> 68220.70756 | S25: ='HULP-velden'!AE15 -> 70672.72794 | T25: ='HULP-velden'!AF15 -> 72992.68335 | U25: ='HULP-velden'!AG15 -> 75192.79876 | V25: ='HULP-velden'!AH15 -> 77283.30971 | W25: ='HULP-velden'!AI15 -> 79272.88786 | X25: ='HULP-velden'!AJ15 -> 81168.9556 | Y25: ='HULP-velden'!AK15 -> 82977.92339 | Z25: ='HULP-velden'!AL15 -> 84705.37173 | AA25: 0.8
D26: ='HULP-velden'!P16 -> 69.49033201 | E26: ='HULP-velden'!Q16 -> 69.87170286 | F26: ='HULP-velden'!R16 -> 70.25307371 | G26: ='HULP-velden'!S16 -> 71.01581541 | H26: ='HULP-velden'!T16 -> 72.54129881 | I26: ='HULP-velden'!U16 -> 74.06678221 | J26: ='HULP-velden'!V16 -> 75.59226561 | K26: ='HULP-velden'!W16 -> 77.11774901 | L26: ='HULP-velden'!X16 -> 78.64323241 | M26: ='HULP-velden'!Y16 -> 80.16871581 | N26: ='HULP-velden'!Z16 -> 81.6941992 | O26: ='HULP-velden'!AA16 -> 83.2196826 | P26: ='HULP-velden'!AB16 -> 84.745166 | Q26: ='HULP-velden'!AC16 -> 86.2706494 | R26: ='HULP-velden'!AD16 -> 87.7961328 | S26: ='HULP-velden'!AE16 -> 89.3216162 | T26: ='HULP-velden'!AF16 -> 90.8470996 | U26: ='HULP-velden'!AG16 -> 92.372583 | V26: ='HULP-velden'!AH16 -> 93.8980664 | W26: ='HULP-velden'!AI16 -> 95.4235498 | X26: ='HULP-velden'!AJ16 -> 96.9490332 | Y26: ='HULP-velden'!AK16 -> 98.4745166 | Z26: ='HULP-velden'!AL16 -> 100
B27: Q berekend bij P=0 en EMVI=0,7 | C27: ='HULP-velden'!O17 -> 202.0101013 | D27: ='HULP-velden'!P17 -> 202.0101013 | E27: ='HULP-velden'!Q17 -> 202.609975 | F27: ='HULP-velden'!R17 -> 203.2098487 | G27: ='HULP-velden'!S17 -> 204.4095962 | H27: ='HULP-velden'!T17 -> 206.8090911 | I27: ='HULP-velden'!U17 -> 209.2085861 | J27: ='HULP-velden'!V17 -> 211.608081 | K27: ='HULP-velden'!W17 -> 214.007576 | L27: ='HULP-velden'!X17 -> 216.4070709 | M27: ='HULP-velden'!Y17 -> 218.8065658 | N27: ='HULP-velden'!Z17 -> 221.2060608 | O27: ='HULP-velden'!AA17 -> 223.6055557 | P27: ='HULP-velden'!AB17 -> 226.0050506 | Q27: ='HULP-velden'!AC17 -> 228.4045456 | R27: ='HULP-velden'!AD17 -> 230.8040405 | S27: ='HULP-velden'!AE17 -> 233.2035354 | T27: ='HULP-velden'!AF17 -> 235.6030304 | U27: ='HULP-velden'!AG17 -> 238.0025253 | V27: ='HULP-velden'!AH17 -> 240.4020203 | W27: ='HULP-velden'!AI17 -> 242.8015152 | X27: ='HULP-velden'!AJ17 -> 245.2010101 | Y27: ='HULP-velden'!AK17 -> 247.6005051 | Z27: ='HULP-velden'!AL17 -> 250 | AA27: EMVI
B28: P berekend uit Q en EMVI=0,7 | D28: ='HULP-velden'!P18 -> 0 | E28: ='HULP-velden'!Q18 -> 7700.29271 | F28: ='HULP-velden'!R18 -> 10881.59416 | G28: ='HULP-velden'!S18 -> 15365.4966 | H28: ='HULP-velden'!T18 -> 21663.75276 | I28: ='HULP-velden'!U18 -> 26451.0698 | J28: ='HULP-velden'!V18 -> 30448.66525 | K28: ='HULP-velden'!W18 -> 33936.77281 | L28: ='HULP-velden'!X18 -> 37059.53447 | M28: ='HULP-velden'!Y18 -> 39902.81761 | N28: ='HULP-velden'!Z18 -> 42522.72125 | O28: ='HULP-velden'!AA18 -> 44958.31408 | P28: ='HULP-velden'!AB18 -> 47238.11384 | Q28: ='HULP-velden'!AC18 -> 49383.70181 | R28: ='HULP-velden'!AD18 -> 51411.88406 | S28: ='HULP-velden'!AE18 -> 53336.05584 | T28: ='HULP-velden'!AF18 -> 55167.10156 | U28: ='HULP-velden'!AG18 -> 56914.01013 | V28: ='HULP-velden'!AH18 -> 58584.30861 | W28: ='HULP-velden'!AI18 -> 60184.37582 | X28: ='HULP-velden'!AJ18 -> 61719.6742 | Y28: ='HULP-velden'!AK18 -> 63194.92453 | Z28: ='HULP-velden'!AL18 -> 64614.23992 | AA28: 0.7
D29: ='HULP-velden'!P19 -> 80.80404051 | E29: ='HULP-velden'!Q19 -> 81.04399 | F29: ='HULP-velden'!R19 -> 81.28393949 | G29: ='HULP-velden'!S19 -> 81.76383848 | H29: ='HULP-velden'!T19 -> 82.72363646 | I29: ='HULP-velden'!U19 -> 83.68343443 | J29: ='HULP-velden'!V19 -> 84.64323241 | K29: ='HULP-velden'!W19 -> 85.60303038 | L29: ='HULP-velden'!X19 -> 86.56282835 | M29: ='HULP-velden'!Y19 -> 87.52262633 | N29: ='HULP-velden'!Z19 -> 88.4824243 | O29: ='HULP-velden'!AA19 -> 89.44222228 | P29: ='HULP-velden'!AB19 -> 90.40202025 | Q29: ='HULP-velden'!AC19 -> 91.36181823 | R29: ='HULP-velden'!AD19 -> 92.3216162 | S29: ='HULP-velden'!AE19 -> 93.28141418 | T29: ='HULP-velden'!AF19 -> 94.24121215 | U29: ='HULP-velden'!AG19 -> 95.20101013 | V29: ='HULP-velden'!AH19 -> 96.1608081 | W29: ='HULP-velden'!AI19 -> 97.12060608 | X29: ='HULP-velden'!AJ19 -> 98.08040405 | Y29: ='HULP-velden'!AK19 -> 99.04020203 | Z29: ='HULP-velden'!AL19 -> 100 | AA29: 0
B30: Q berekend bij P=0 en EMVI=0,6 | C30: ='HULP-velden'!O20 -> 230.2943725 | D30: ='HULP-velden'!P20 -> 230.2943725 | E30: ='HULP-velden'!Q20 -> 230.5406929 | F30: ='HULP-velden'!R20 -> 230.7870132 | G30: ='HULP-velden'!S20 -> 231.2796539 | H30: ='HULP-velden'!T20 -> 232.2649353 | I30: ='HULP-velden'!U20 -> 233.2502166 | J30: ='HULP-velden'!V20 -> 234.235498 | K30: ='HULP-velden'!W20 -> 235.2207794 | L30: ='HULP-velden'!X20 -> 236.2060608 | M30: ='HULP-velden'!Y20 -> 237.1913421 | N30: ='HULP-velden'!Z20 -> 238.1766235 | O30: ='HULP-velden'!AA20 -> 239.1619049 | P30: ='HULP-velden'!AB20 -> 240.1471863 | Q30: ='HULP-velden'!AC20 -> 241.1324676 | R30: ='HULP-velden'!AD20 -> 242.117749 | S30: ='HULP-velden'!AE20 -> 243.1030304 | T30: ='HULP-velden'!AF20 -> 244.0883118 | U30: ='HULP-velden'!AG20 -> 245.0735931 | V30: ='HULP-velden'!AH20 -> 246.0588745 | W30: ='HULP-velden'!AI20 -> 247.0441559 | X30: ='HULP-velden'!AJ20 -> 248.0294373 | Y30: ='HULP-velden'!AK20 -> 249.0147186 | Z30: ='HULP-velden'!AL20 -> 250 | AA30: EMVI
B31: P berekend uit Q en EMVI=0,6 | D31: ='HULP-velden'!P21 -> 0 | E31: ='HULP-velden'!Q21 -> 4570.099102 | F31: ='HULP-velden'!R21 -> 6460.748777 | G31: ='HULP-velden'!S21 -> 9130.235599 | H31: ='HULP-velden'!T21 -> 12893.29339 | I31: ='HULP-velden'!U21 -> 15767.92431 | J31: ='HULP-velden'!V21 -> 18180.55198 | K31: ='HULP-velden'!W21 -> 20296.6035 | L31: ='HULP-velden'!X21 -> 22201.04428 | M31: ='HULP-velden'!Y21 -> 23944.41962 | N31: ='HULP-velden'!Z21 -> 25559.70863 | O31: ='HULP-velden'!AA21 -> 27069.8502 | P31: ='HULP-velden'!AB21 -> 28491.56866 | Q31: ='HULP-velden'!AC21 -> 29837.50643 | R31: ='HULP-velden'!AD21 -> 31117.49838 | S31: ='HULP-velden'!AE21 -> 32339.37586 | T31: ='HULP-velden'!AF21 -> 33509.49667 | U31: ='HULP-velden'!AG21 -> 34633.10719 | V31: ='HULP-velden'!AH21 -> 35714.59744 | W31: ='HULP-velden'!AI21 -> 36757.68542 | X31: ='HULP-velden'!AJ21 -> 37765.55328 | Y31: ='HULP-velden'!AK21 -> 38740.94994 | Z31: ='HULP-velden'!AL21 -> 39686.26967 | AA31: 0.6
D32: ='HULP-velden'!P22 -> 92.11774901 | E32: ='HULP-velden'!Q22 -> 92.21627714 | F32: ='HULP-velden'!R22 -> 92.31480528 | G32: ='HULP-velden'!S22 -> 92.51186156 | H32: ='HULP-velden'!T22 -> 92.90597411 | I32: ='HULP-velden'!U22 -> 93.30008666 | J32: ='HULP-velden'!V22 -> 93.6941992 | K32: ='HULP-velden'!W22 -> 94.08831175 | L32: ='HULP-velden'!X22 -> 94.4824243 | M32: ='HULP-velden'!Y22 -> 94.87653685 | N32: ='HULP-velden'!Z22 -> 95.2706494 | O32: ='HULP-velden'!AA22 -> 95.66476195 | P32: ='HULP-velden'!AB22 -> 96.0588745 | Q32: ='HULP-velden'!AC22 -> 96.45298705 | R32: ='HULP-velden'!AD22 -> 96.8470996 | S32: ='HULP-velden'!AE22 -> 97.24121215 | T32: ='HULP-velden'!AF22 -> 97.6353247 | U32: ='HULP-velden'!AG22 -> 98.02943725 | V32: ='HULP-velden'!AH22 -> 98.4235498 | W32: ='HULP-velden'!AI22 -> 98.81766235 | X32: ='HULP-velden'!AJ22 -> 99.2117749 | Y32: ='HULP-velden'!AK22 -> 99.60588745 | Z32: ='HULP-velden'!AL22 -> 100
B33: Q berekend bij P=0 en EMVI=1,1 | C33: ='HULP-velden'!O23 -> 88.87301628 | D33: ='HULP-velden'!P23 -> 88.87301628 | E33: ='HULP-velden'!Q23 -> 90.88710357 | F33: ='HULP-velden'!R23 -> 92.90119087 | G33: ='HULP-velden'!S23 -> 96.92936546 | H33: ='HULP-velden'!T23 -> 104.9857147 | I33: ='HULP-velden'!U23 -> 113.0420638 | J33: ='HULP-velden'!V23 -> 121.098413 | K33: ='HULP-velden'!W23 -> 129.1547622 | L33: ='HULP-velden'!X23 -> 137.2111114 | M33: ='HULP-velden'!Y23 -> 145.2674606 | N33: ='HULP-velden'!Z23 -> 153.3238098 | O33: ='HULP-velden'!AA23 -> 161.380159 | P33: ='HULP-velden'!AB23 -> 169.4365081 | Q33: ='HULP-velden'!AC23 -> 177.4928573 | R33: ='HULP-velden'!AD23 -> 185.5492065 | S33: ='HULP-velden'!AE23 -> 193.6055557 | T33: ='HULP-velden'!AF23 -> 201.6619049 | U33: ='HULP-velden'!AG23 -> 209.7182541 | V33: ='HULP-velden'!AH23 -> 217.7746033 | W33: ='HULP-velden'!AI23 -> 225.8309524 | X33: ='HULP-velden'!AJ23 -> 233.8873016 | Y33: ='HULP-velden'!AK23 -> 241.9436508 | Z33: ='HULP-velden'!AL23 -> 250 | AA33: EMVI
B34: P berekend uit Q en EMVI=1,1 | D34: ='HULP-velden'!P24 -> 0 | E34: ='HULP-velden'!Q24 -> 17672.13388 | F34: ='HULP-velden'!R24 -> 24951.56023 | G34: ='HULP-velden'!S24 -> 35171.68777 | H34: ='HULP-velden'!T24 -> 49412.98271 | I34: ='HULP-velden'!U24 -> 60114.77121 | J34: ='HULP-velden'!V24 -> 68945.45812 | K34: ='HULP-velden'!W24 -> 76555.30218 | L34: ='HULP-velden'!X24 -> 83279.64941 | M34: ='HULP-velden'!Y24 -> 89318.71775 | N34: ='HULP-velden'!Z24 -> 94803.55633 | O34: ='HULP-velden'!AA24 -> 99825.56218 | P34: ='HULP-velden'!AB24 -> 104451.5153 | Q34: ='HULP-velden'!AC24 -> 108731.9772 | R34: ='HULP-velden'!AD24 -> 112706.3188 | S34: ='HULP-velden'!AE24 -> 116405.8991 | T34: ='HULP-velden'!AF24 -> 119856.1638 | U34: ='HULP-velden'!AG24 -> 123078.0821 | V34: ='HULP-velden'!AH24 -> 126089.1597 | W34: ='HULP-velden'!AI24 -> 128904.1726 | X34: ='HULP-velden'!AJ24 -> 131535.7094 | Y34: ='HULP-velden'!AK24 -> 133994.5806 | Z34: ='HULP-velden'!AL24 -> 136290.1317 | AA34: 1.1
D35: ='HULP-velden'!P25 -> 35.54920651 | E35: ='HULP-velden'!Q25 -> 36.35484143 | F35: ='HULP-velden'!R25 -> 37.16047635 | G35: ='HULP-velden'!S25 -> 38.77174619 | H35: ='HULP-velden'!T25 -> 41.99428586 | I35: ='HULP-velden'!U25 -> 45.21682553 | J35: ='HULP-velden'!V25 -> 48.43936521 | K35: ='HULP-velden'!W25 -> 51.66190488 | L35: ='HULP-velden'!X25 -> 54.88444456 | M35: ='HULP-velden'!Y25 -> 58.10698423 | N35: ='HULP-velden'!Z25 -> 61.32952391 | O35: ='HULP-velden'!AA25 -> 64.55206358 | P35: ='HULP-velden'!AB25 -> 67.77460326 | Q35: ='HULP-velden'!AC25 -> 70.99714293 | R35: ='HULP-velden'!AD25 -> 74.2196826 | S35: ='HULP-velden'!AE25 -> 77.44222228 | T35: ='HULP-velden'!AF25 -> 80.66476195 | U35: ='HULP-velden'!AG25 -> 83.88730163 | V35: ='HULP-velden'!AH25 -> 87.1098413 | W35: ='HULP-velden'!AI25 -> 90.33238098 | X35: ='HULP-velden'!AJ25 -> 93.55492065 | Y35: ='HULP-velden'!AK25 -> 96.77746033 | Z35: ='HULP-velden'!AL25 -> 100 | AA35: 0
B37: Hulpvelden t.b.v grafiek | F37: Exponent | G37: Pref | H37: Qref
B38: Referentie | C38: =+'HULP-velden'!H54 -> 100000 | D38: =+'HULP-velden'!I54 -> 80 | F38: =+'HULP-velden'!H112 -> 2 | G38: =+'HULP-velden'!H113 -> 100000 | H38: =+'HULP-velden'!H114 -> 200
B39: Referentie (Qmax) | C39: =+'HULP-velden'!H55 -> 119895.7881 | D39: =+'HULP-velden'!I55 -> 100
B40: Qmax | C40: =+'HULP-velden'!H43 -> 100 | D40: =+'HULP-velden'!I43 -> 100 | F40: Qmax | G40: =+'HULP-velden'!H109 -> 250
B41: Qmin | C41: =+'HULP-velden'!H44 -> 60 | D41: =+'HULP-velden'!I44 -> 60 | F41: Qmin | G41: =+'HULP-velden'!H110 -> 150
B42: Qref | C42: =+'HULP-velden'!H45 -> 80 | D42: =+'HULP-velden'!I45 -> 80 | F42: Qwensen | G42: =+G40-G41 -> 100
B43: P | C43: =+'HULP-velden'!H47 -> 0 | D43: =+'HULP-velden'!I47 -> 200000 | F43: LAQ | G43: =+'HULP-velden'!H57 -> -10 | H43: =+G43 -> -10 | I43: genormaliseerd
B44: Bonus (extra) | C44: =+'HULP-velden'!H53 -> 160 | D44: =+'HULP-velden'!I53 -> 160 | F44: LAQ (norm) | G44: =+'HULP-velden'!H58 -> -4 | H44: =+G44 -> -4
B45: Qeisen | C45: =+'HULP-velden'!J86 -> 30 | D45: =+'HULP-velden'!K86 -> 10000 | F45: Uw Inschrijving | G45: =+'BPK-Grafiek'!$F$14/G40*100 -> 60 | H45: =+'BPK-Grafiek'!$F$9 -> 0
B46: Qwensen | C46: =+'HULP-velden'!J87 -> 80 | D46: =+'HULP-velden'!K87 -> 10000 | F46: Kenmerk | G46: =Superformule!G7 -> 0
B47: Qbonus | C47: =+'HULP-velden'!J88 -> 130 | D47: =+'HULP-velden'!K88 -> 10000 | F47: Naam | G47: =Superformule!G6 -> 0
